Workbook

Sheet Project Data
B1: 2024 EnergizeCT Commercial & Industrial Retrofit Energy Efficiency Data Collection
B2: For additional program information: | D2: https://www.energizect.com/your-business/solutions-list/Energy-Opportunities | F2: Version Date: 11-14-24
B4: Participant must obtain conditional approval from the Utilities prior to the purchase or installation of any energy efficiency measures to be eligible to receive efficiency incentives. The following are required for ALL measures: (1) Proposal to customer (2) ALL specification sheets and supporting documents. (3) Data fields (in yellow) on applicable tabs MUST BE FILLED IN
B5: Application will be returned if there is ANY missing or incomplete information. If you don't know which EEC will manage this project, email this form and the backup documentation to commercial@eversource.com.
B7: F A C I L I T Y I N F O R M A T I O N | V7: Type of Project
B8: Facility - Building Name | V8: New facility
B9: Street Address | V9: Addition to existing facility
B10: City | V10: Major renovation
B11: State | V11: Major renovation plus addition
B12: Zip Code | E12: * If the project is being implemented in an Environmental Justice Community (EJC),
B13: Building Type | E13: the city and zip code will change to green
B14: Electric | C14: - Utility Name
B15: Electric | C15: - Account # (@facility)
B16: Natural Gas | C16: - Utility Name
B17: Natural Gas | C17: - Account # (@facility)
B18: Estimated Project Start Date
B19: Estimated Project Completion Date | F19: FACILITY HOURS OF OPERATION
B20: Building Area, ft2: | F20: (Times must be entered in 0-24 hr format)
B21: Nearest Weather Station (select from dropdown): | G21: Start Time | H21: Finish Time
B22: Building Fossil Fuel Type | F22: Weekdays
B23: Building Annual Fuel Use (CCF): | F23: Saturday
B24: Building Fossil Fuel Account Number(s): | F24: Sunday
F25: Holiday Closures?
B26: C U S T O M E R C O N T A C T I N F O R M A T I O N | F26: Seasonal Building Hours? (if yes, fill out table below)
B27: Name
B28: Title
B29: Company Name | F29: Monthly/Seasonal
B30: Email Address | F30: Bldg Hours Diversity
B31: Phone Number | F31: (if variable)
B32: Street Address (if different from facility street address) | F32: Month | G32: Bldg Use Diversity
B33: City, State, Zip Code (if different from facility address) | F33: January
B34: C O N T R A C T O R C O N T A C T I N F O R M A T I O N | F34: February
B35: Name | F35: March
B36: Title | F36: April
B37: Company Name | F37: May
B38: Email Address | F38: June
B39: Phone Number | F39: July
B40: Street Address | F40: August
B41: City, State, Zip Code | F41: September
B42: I N C E N T I V E P A Y E E I N F O R M A T I O N | F42: October
B43: Customer or Contractor Company Name | F43: Novermber
C44: Attention: | F44: December
B45: Street Address
B46: City, State
B47: Zip
B49: Please provide Payee W-9 at this time and include in submission
B52: Provide any additional information felt to be relevant to this project.

Sheet Project Data Conversion (hidden)
A2: Project: Facility Name | B2: ='Project Data'!D8 -> 0
A3: Street Address | B3: ='Project Data'!D9 -> 0
A4: Street Address Line 2
A5: City, State | B5: ='Project Data'!D10 -> 0
A6: Zip Code | B6: ='Project Data'!D12 -> 0
A7: Utility Account Number(s) | B7: =_xlfn.CONCAT('Project Data'!D15, "; ", 'Project Data'!D17) -> ;
A9: Customer: Contact Name | B9: =MID('Project Data'!D27,1,SEARCH(" ",'Project Data'!D27)-1) -> 
A10: Last Name | B10: =TRIM(MID('Project Data'!D27,SEARCH(" ",'Project Data'!D27),LEN('Project Data'!D27))) -> 
A11: Title | B11: ='Project Data'!D28 -> 0
A12: Company Name | B12: ='Project Data'!D29 -> 0
A13: Phone (enter as "9876543210") | B13: ='Project Data'!D31 -> 0
A14: E-mail Address | B14: ='Project Data'!D30 -> 0
A15: Street Address | B15: ='Project Data'!D32 -> 0
A16: Street Address line 2
A17: City, State | B17: ='Project Data'!D33 -> 0
A18: Zip Code | B18: ='Project Data'!#REF! -> 
A19: Contractor/ESCO: Company Name | B19: ='Project Data'!D37 -> 0
A20: Contact Name | B20: ='Project Data'!D35 -> 0
A21: Phone #( "012345789") | B21: ='Project Data'!D39 -> 0
A22: E-mail Address | B22: ='Project Data'!D38 -> 0
A23: Estimated Project Completion Date | B23: ='Project Data'!D19 -> 00:00:00
A24: Incentive Check:
A25: Payee Name | B25: ='Project Data'!D43 -> 0
A26: Street Address | B26: ='Project Data'!D45 -> 0
A27: Street Address Line 2
A28: City, State | B28: ='Project Data'!D46 -> 0
A29: Zip Code | B29: ='Project Data'!D47 -> 0
A30: Building Type (Dropdown List) | B30: ='Project Data'!D13 -> 0
A31: Project Interior Square Footage | B31: ='Project Data'!D20 -> 0
A32: Do HVAC Units Have Economizers? (Dropdown List) | B32: ='Project Data'!D21 -> 0

Sheet EJ Communities (hidden)
A1: Environmental Justice Communities 2022 (List Until october 2022)
A2: Ansonia
A3: Bridgeport
A4: Bristol
A5: Chaplin
A6: Derby
A7: East Hartford
A8: East Haven
A9: Griswold
A10: Groton
A11: Hartford
A12: Meriden
A13: Montville
A14: New Britain
A15: New London
A16: North Stonington
A17: Norwich
A18: Plainfield
A19: Putnam
A20: Sprague
A21: Sterling
A22: Torrington
A23: Waterbury
A24: West Haven
A25: Winchester
A26: Windham

Sheet Measures
A2: =y -> 6
B3: M E A S U R E S
J6: Button Text | K6: Linked Sheet | M6: Button Text | N6: Linked Sheet
J7: Lighting | M7: Commercial Refrigeration
J8: Lighting | K8: Lighting | M8: E.C. Evap Fan Motors | N8: Refrig. Equip^1
J9: HVAC New Equipment | M9: Evap Fan Controls | N9: Refrig. Equip^2
H10: Project Summary Cost table | J10: Unitary & Split DX | K10: =MID(CELL("filename",'Unitary & Split DX'!$A$1),FIND("]",CELL("filename",'Unitary & Split DX'!$A$1))+1,255) -> Unitary & Split DX | M10: Door Heater Controls | N10: Refrig. Equip^3
H11: Measure | I11: Cost | J11: Heat Pumps; Air Source | K11: =MID(CELL("filename",'Heat Pumps - Air'!$A$1),FIND("]",CELL("filename",'Heat Pumps - Air'!$A$1))+1,255) -> Heat Pumps - Air | M11: Refrigeration LED Lighting & Controls | N11: Refrig. Equip^4
H12: Lighting | I12: =Lighting!C6 -> 0 | J12: Heat Pumps; Water Source | K12: =MID(CELL("filename",'Heat Pumps - Water'!$A$1),FIND("]",CELL("filename",'Heat Pumps - Water'!$A$1))+1,255) -> Heat Pumps - Water | M12: Vending Machine Controls | N12: Refrig. Equip^7
H13: Unitary & Split Dx | I13: ='Unitary & Split DX'!C8 -> 0 | J13: VRF-VRV | K13: =MID(CELL("filename",'VRF-VRV'!$A$1),FIND("]",CELL("filename",'VRF-VRV'!$A$1))+1,255) -> VRF-VRV | M13: Night Covers | N13: Refrig. Equip^6
H14: Heat Pumps: Air Source | I14: ='Heat Pumps - Air'!C8 -> 0 | M14: Refrigerator Door | N14: =MID(CELL("filename",'Refrigerator Door'!$A$3),FIND("]",CELL("filename",'Refrigerator Door'!$A$3))+1,255) -> Refrigerator Door
H15: Heat Pumps: Water Source | I15: ='Heat Pumps - Water'!C8 -> 0 | J15: Chillers | K15: =MID(CELL("filename",Chillers!$A$4),FIND("]",CELL("filename",Chillers!$A$4))+1,255) -> Chillers | M15: Commercial Kitchens
H16: VRF-VRV | I16: ='VRF-VRV'!C6 -> 0 | J16: Natural Gas Heating | K16: =MID(CELL("filename",'Gas Heating'!$A$10),FIND("]",CELL("filename",'Gas Heating'!$A$10))+1,255) -> Gas Heating | M16: Freezers - Coolers - Dishwashers | N16: =MID(CELL("filename",'Commercial Kitchen Equipment'!$C$1),FIND("]",CELL("filename",'Commercial Kitchen Equipment'!$C$1))+1,255) -> Commercial Kitchen Equipment
H17: Chillers | I17: =Chillers!C8 -> 0 | J17: Domestic Hot Water | K17: =MID(CELL("filename",DHW!$A$13),FIND("]",CELL("filename",DHW!$A$13))+1,255) -> DHW | M17: Cooking Equipment | N17: =MID(CELL("filename",'Commercial Kitchen Equipment'!$C$1),FIND("]",CELL("filename",'Commercial Kitchen Equipment'!$C$1))+1,255) -> Commercial Kitchen Equipment
H18: Natural Gas Heating | I18: ='Gas Heating'!C7 -> 0 | J18: Hot Water Usage | K18: =MID(CELL("filename",'HW Usage'!$A$1),FIND("]",CELL("filename",'HW Usage'!$A$1))+1,255) -> HW Usage | M18: Kitchen Hood VFDs | N18: =MID(CELL("filename",'Kitchen Hoods'!$A$1),FIND("]",CELL("filename",'Kitchen Hoods'!$A$1))+1,255) -> Kitchen Hoods
H19: Domestic Hot Water | I19: =DHW!C8 -> 0 | J19: HVAC Retrofit
H20: Hot Water Usage | I20: ='HW Usage'!C17 -> 0 | J20: HVAC Motor VFDs | K20: =MID(CELL("filename",VFDs!$A$1),FIND("]",CELL("filename",VFDs!$A$1))+1,255) -> VFDs
H21: HVAC Motor VFDs | I21: =VFDs!N9 -> 0 | J21: Energy Recovery Units (ERV) | K21: =MID(CELL("filename",ERV!$A$1),FIND("]",CELL("filename",ERV!$A$1))+1,255) -> ERV | M21: Building Envelope
H22: Energy Recovery Units (ERV) | I22: =ERV!F9 -> 0 | J22: DCV (CO2 control) | K22: =MID(CELL("filename",DCV!$A$1),FIND("]",CELL("filename",DCV!$A$1))+1,255) -> DCV | M22: Insulation | N22: =MID(CELL("filename",Insulation!$A$1),FIND("]",CELL("filename",Insulation!$A$1))+1,255) -> Insulation
H23: DCV (CO2 Control) | I23: =DCV!C11 -> 0 | J23: Pipe and Valve Insulation | K23: =MID(CELL("filename",'Pipe Ins'!$A$1),FIND("]",CELL("filename",'Pipe Ins'!$A$1))+1,255) -> Pipe Ins | M23: Windows | N23: =MID(CELL("filename",Windows!$A$1),FIND("]",CELL("filename",Windows!$A$1))+1,255) -> Windows
H24: Pipe and Valve Insulation | I24: ='Pipe Ins'!D15 -> 0 | J24: Advanced Thermostat | K24: =MID(CELL("filename",'Advanced Thermostat'!$A$3),FIND("]",CELL("filename",'Advanced Thermostat'!$A$3))+1,255) -> Advanced Thermostat | M24: Manufacturing & Process
H25: Advanced Thermostat | I25: ='Advanced Thermostat'!C10 -> 0 | J25: Steam Trap Repairs | K25: =MID(CELL("filename",'Steam Traps'!$A$1),FIND("]",CELL("filename",'Steam Traps'!$A$1))+1,255) -> Steam Traps | M25: Air Compressor & Dryer | N25: =MID(CELL("filename",'Air Compressor & Dryer'!$A$1),FIND("]",CELL("filename",'Air Compressor & Dryer'!$A$1))+1,255) -> Air Compressor & Dryer
H26: Steam Traps | I26: ='Steam Traps'!C8 -> 0 | J26: Custom Measures | M26: Air Compressor Heat Recovery | N26: =MID(CELL("filename",'Air Compressor Heat Recovery'!$A$1),FIND("]",CELL("filename",'Air Compressor Heat Recovery'!$A$1))+1,255) -> Air Compressor Heat Recovery
H27: Energy Management System | I27: =EMS!C15 -> 0 | J27: Energy Management System | K27: =MID(CELL("filename",EMS!$A$1),FIND("]",CELL("filename",EMS!$A$1))+1,255) -> EMS | M27: Compressed Air Leak Survey | N27: =MID(CELL("filename",'Compressed Air Leak Survey'!$A$1),FIND("]",CELL("filename",'Compressed Air Leak Survey'!$A$1))+1,255) -> Compressed Air Leak Survey
H28: Miscellaneous / Custom | I28: =Custom!C8 -> 0 | J28: Miscellaneous/ Custom | K28: =MID(CELL("filename",Custom!$A$1),FIND("]",CELL("filename",Custom!$A$1))+1,255) -> Custom | M28: Plastic Injection Molding Machines (PIMM) | N28: =MID(CELL("filename",PIMMS!$A$1),FIND("]",CELL("filename",PIMMS!$A$1))+1,255) -> PIMMS
H29: Refrigeration Equipment | I29: ='Refrig. Equip'!C12 -> 0 | M29: Commerical Clothes Washers | N29: =MID(CELL("filename",Washers!$A$3),FIND("]",CELL("filename",Washers!$A$3))+1,255) -> Washers
H30: Refrigerator Door | I30: ='Refrigerator Door'!C8 -> 0
H31: Commercial Kitchen Equipment | I31: ='Commercial Kitchen Equipment'!C9 -> 0
H32: Kitchen Hoods | I32: ='Kitchen Hoods'!C6:D6 -> 0 | J32: 0
H33: Insulation | I33: =Insulation!J7 -> 0
H34: Windows | I34: =Windows!E9 -> 0
H35: Air Compressor & Dryer | I35: ='Air Compressor & Dryer'!C14 -> 0
H36: Air Compressor Heat Recovery | I36: ='Air Compressor Heat Recovery'!B29 -> 0
H37: Compressed Air Leak Survey | I37: ='Compressed Air Leak Survey'!B36 -> 0
H38: PIMMS | I38: =PIMMS!E18 -> 0
H39: Washers | I39: =Washers!C15 -> 0
H40: TOTAL PROJECT COST: | I40: =SUM(I12:I39) -> 0

Sheet Commerical Cloths Washers (hidden)
B1: Project Name: | C1: Commerical Cloths Washers | H1: PSD 2.6.4 | J1: 2022
B2: Project No:
C4: Clothes Washers | V4: Drop-down Inputs
V5: Top Load Washer
V6: Front Load Washer
V7: Top Load Dryer
B8: Facility Type: | N8: Front Load Washer | V8: Front Load Dryer
B9: Washer Load Type | C9: Front Load Washer | N9: Top Load Washer | O9: dryer code
B10: Dryer Type | C10: Electric Dryer | N10: No Dryer | O10: =IF(N10=$C$10,0,1) -> 1
B11: Dryer Load Type | C11: Top Load Dryer | D11: If all not the same, pick based on the largest number or most used. | N11: Electric Dryer | O11: =IF(N11=$C$10,1,0) -> 1
B12: DHW type | C12: Propane DHW | N12: Gas Dryer | O12: =IF(N12=$C$10,1,0) -> 0
N13: Front Load Dryer
B14: Inputs | N14: Top Load Dryer
B15: Symbol | C15: Description | D15: Units | E15: Electric Washer
B16: Top Load Washer/Dryer | D16: -- | E16: =+C9 -> Front Load Washer | N16: Electric DHW | O16: Gas DHW | P16: Propane DHW | Q16: Oil DHW
B17: N | C17: # units | D17: # | E17: 12
B18: MEFi | C18: Modified Energy Factor, installed | D18: ft3/kWh/cycle | E18: 2.2
B19: LDS | C19: avg # load/wk | D19: Loads/wk | E19: 40
B20: WK | C20: avg # weeks/yr | D20: wk/yr | E20: 52
B21: WkWhes | C21: washer kWh/load Estar | D21: kWh/load | E21: 0.085
B22: WBTUb | C22: washer BTU/load Estar | D22: BTU/load | E22: --

Sheet Lighting (hidden)
B1: L I G H T I N G
A2: =ROW(#REF!) ->  | B2: h | F2: h | L2: h
J3: Note:-
B4: Participant must obtain conditional approval from the Utilities prior to the purchase or installation of any energy efficiency measures to be eligible to receive efficiency incentives. The following are required for ALL measures: (1) Proposal to customer (2) ALL specification sheets and supporting documents. (3) Data fields (in yellow) on applicable tabs MUST BE FILLED IN
B5: Instructions:
B6: Total Project Cost
B7: Select any cell to make edits above. | G7: Mouse over below column titles for more Info
B9: Area Description | C9: Unit Qty. Before | D9: Description Before | E9: Watts/ Unit Before | F9: Annual Hours Before (limited by facility type) | G9: Incandescent A-lamp on Non-Dimming Circuit (Y or N) | H9: Item Type | I9: Lighting Group Type** | J9: Unit Qty. After | K9: Proposed Fixture - Manufacturer | L9: Proposed Fixture - Model Number (must match approved list) | M9: DLC Product ID or Energy Star | N9: Watts/ Unit After | O9: Dimmable Fixture or Lamp? | P9: "NEW" Occupancy Sensor Controlled? | Q9: Occupancy Sensor Dim Level (%) (If Applicable) | R9: Daylight Controls Used? (If Applicable) | S9: High End Trim % (0.xx) | T9: Installed Cost/ Fixture
G1291: New Fixtures
G1292: New Fixtures w/ LLLC or NLC
G1293: TLED Type A & B (Non-Eligible)
G1294: TLED Type C
G1295: Screw-In LED
G1296: Controls Only
G1297: Misc. Costs
G1298: Non-Eligible
G1299: Refrigerator
G1300: Freezer

Sheet Unitary & Split DX (hidden)
B1: U N I T A R Y & S P L I T D X H V A C S Y S T E M S
A2: =ROW(B13) -> 13 | B2: h | F2: h | L2: h | P2: h
B4: Participant must obtain conditional approval from the Utilities prior to the purchase or installation of any energy efficiency measures to be eligible to receive efficiency incentives. The following are required for ALL measures: (1) Proposal to customer (2) Equipment submittals / specification sheets. (3) AHRI sheets for proposed equipment. (4) Data fields (in yellow) on applicable tabs MUST BE FILLED IN
B5: Instructions: Populate the table below:
B7: * Full system rating is required on split HVAC equipment. No incentives for the replacement of one part of the system, ex. - condensing unit. * Provide equipment submittal showing options selected and installed cost of the equipment.
B8: Total Project Cost
B9: Edits to the selected row in the table below are made in this section.
C10: Existing Equipment | J10: Proposed Unitary & Split DX HVAC Equipment
B11: Unit ID | C11: Existing Unitary or Split | D11: Existing Qty | E11: Existing Manufacturer | F11: Existing Condenser Model # | G11: Existing Evaporator Model # (if applicable) | H11: Existing SEER or EER Rating | I11: Existing Serial Number | J11: Installed Quantity | K11: Age of Existing Equipment (Years) | L11: Early Retirement / Dual Baseline Eligible? | M11: Equipment Description Make/Model Number | N11: AHRI Cooling Capacity (Btu/h) | O11: Equipment Type if <65,000 Btu/hr | P11: Installed EER | Q11: Installed IEER (Use SEER2 under 65,000 Btu/h) | R11: AHRI Certified Reference Number ***
B12: ex., RTU-1 | D12: 1 | E12: XYZ COMPANY | F12: XYZ-C12-3456 | G12: XYZ-E67-8910 | H12: 12 | J12: 1 | K12: 15 | L12: No | M12: XYZ-C12-3456 | N12: 55000 | O12: Split System | P12: 12 | Q12: 15 | R12: 1234567
E31: Tier 1 | G31: Tier 2
B32: Size | E32: Minimum Qualifying EER/IEER | F32: Tier 1 Rebate | G32: Minimum Qualifying EER/IEER | H32: Tier 2 Rebate
B33: Nominal Tons | C33: MBTU/Hr
B34: < 5.4 (packaged unit equipment only) | C34: < 65 (packaged unit equipment only) | E34: 15.2 SEER2, 11.5 EER2 | F34: 50 | G34: 16.0 SEER2, 12.0 EER2 | H34: 150
B35: ≥ 5.4 to < 11.3 | C35: ≥ 65 to < 135 | E35: 12.2 EER, 16.3 IEER | F35: 50 | G35: 12.7 EER 18 IEER | H35: 150
B36: ≥ 11.3 to < 20 | C36: ≥ 135 to < 240 | E36: 12.2 EER, 15.6 IEER | F36: 50 | G36: 12.2 EER, 17 IEER | H36: 150
B37: ≥ 20 to ≤ 63.33 | C37: ≥ 240 to ≤ 375 | E37: 10.8 EER, 14.5 IEER | F37: 50 | G37: 10.8 EER, 15.8 IEER | H37: 150
B41: Note:-

Sheet Heat Pumps - Air (hidden)
B1: A I R S O U R C E H E A T P U M P S ( E X C L U D I N G V R F / V R V )
A2: =ROW(B17) -> 17 | B2: h | G2: h | N2: h | V2: h
T3: *** An AHRI rating sheet is required for each proposed unit, and must be submitted with this form
B4: Participant must obtain conditional approval from the Utilities prior to the purchase or installation of any energy efficiency measures to be eligible to receive efficiency incentives. Equipment must be installed by a contractor participating in the Energize Connecticut Heat Pump Installer Network in the service territory of the Participating Utility and must replace oil, propane, natural gas, or electric resistance as the primary heating system providing heating for a majority of the season season. If an existing oil, propane, or natural gas system will be left in place, customer must either install an integrated control listed on the EnergizeCT QPL (https://energizect.force.com/midstream/file-asset/MiniSplit_Air_Source_Heat_Pump_QPL ) or must certify that an existing BMS is capable of operating both the heat pump and existing heating system. Documentation of control sequence is required. For electric resistance backup heat, a temperature set point differential should be 2 degrees or greater. The following are required for ALL measures: (1) Proposal to customer must include Equipment Manufacturer & Model Numbers as well as Integrated Control Manufacturer & Model Numbers (if pre-existing heating system will not be fully removed/disconnected). The integrated control must be on the EnergizeCT QPL. (2) Proposal must clearly state if the pre-existing system will be fully removed, disconnected, or left in place. (3) ALL specification sheets and supporting documents showing options selected and installed cost of the equipment. (4) Data fields (in yellow) on applicable tabs MUST BE FILLED IN (5) AHRI rating sheet (example on right) is required for each proposed unit, and must be submitted with this form NOTE: New construction and major renovation projects do not qualify.
B5: Download the EnergizeCT QPL
B6: Instructions: Populate the table below
B7: Edits to the selected table rows below are made in this section.
B8: Total Project Cost
B9: In the table that follows, select any cell in the row and then make edits to the existing and proposed equipment using yellow cells above.
C10: Existing Equipment | N10: Air Source Heat Pumps (non VRV) Units Proposed
B11: Unit ID | C11: Existing Equipment Qty | D11: Existing Equipment / System | E11: Existing Equipment Input Capacity (Btu/h) | F11: Year of Manufacturer | G11: Existing Manufacturer | H11: Existing Model Number | I11: Existing AFUE (%) | J11: Existing Thermal Efficiency (%) | K11: Existing Combustion Efficiency (%) | L11: Fully Replacing Heating System | M11: What Fuel Type is being displaced ? | N11: Proposed Equipment Qty | O11: Age of Existing Equipment (Years) | P11: Early Retirement / Dual Baseline Eligible? | Q11: Proposed Equipment Full Model number | R11: Proposed AHRI Cooling Capacity (Btu/h) | S11: Proposed AHRI Heating Capacity at 47°F (Btu/h) | T11: Proposed AHRI Heating Capacity at 17°F (Btu/hr) | U11: Proposed Equipment Type if Cooling Capacity <65,000 Btu/hr | V11: Proposed Installed EER (Use SEER2 under 65,000 btu/h) | W11: Installed IEER (over 65,000 btu/h only) | X11: Proposed Installed COP (Use HSPF2 under 65,000 btu/h) | Y11: Fuel Optimization: Heat Pump Displacing Fossil Fuel or Elec Resistance Heat? | Z11: Fuel Optimization: Base Heating Fuel Being Displaced | AA11: Integrated Control Model #
B12: example:: ASHP-1 | C12: 1 | D12: Boiler | E12: MODEL XYZ123 | F12: 2000 | G12: 67 | H12: 12 | I12: 70 | J12: 80 | K12: 81 | L12: No | M12: Natural Gas | N12: 1 | O12: 12 | P12: Yes | Q12: MODEL XYZ123 | R12: 36000 | S12: 12000 | T12: 10000 | U12: Ductless Single Zone | V12: 13.5 | X12: 18 | Y12: Partial | Z12: Electric Resistance | AA12: QUAL
B39: Size | D39: Type | E39: Minimum Ratings (based on AHRI) | G39: Incentive
B40: Nominal Tons | C40: MBTU/Hr | E40: SEER/EER | F40: COP/HSPF | H40: ($/Heating Ton)
B41: < 5.4 | C41: < 65 | D41: Split System | E41: 16.4 SEER2 | F41: 8.6 HSPF2 | H41: $640 capped at Eversource: $400,000 Avangrid: $200,000
D42: Single Pkg | E42: 15.2 SEER2 | F42: 8.1 HSPF2
B43: ≥ 5.4 to < 11.3 | C43: ≥ 65 to < 135 | D43: All | E43: 11.8 EER, 15.4 IEER | F43: 3.5 COP
B44: ≥ 11.3 to < 20 | C44: ≥135 to <240 | D44: All | E44: 10.9 EER, 14.6 IEER | F44: 3.4 COP
B45: ≥ 20 to ≤ 30 | C45: ≥ 240 to ≤ 375 | D45: All | E45: 10.3 EER, 13 IEER | F45: 3.3 COP
B53: Note:-

Sheet Heat Pumps - Water (hidden)
B1: W A T E R S O U R C E H E A T P U M P S ( W S H P )
A2: =ROW(B16) -> 16 | B2: h | G2: h | N2: h | S2: h
B4: Participant must obtain conditional approval from the Utilities prior to the purchase or installation of any energy efficiency measures to be eligible to receive efficiency incentives. Equipment must be installed by a contractor participating in the Energize Connecticut Heat Pump Installer Network in the service territory of the Participating Utility and must replace oil, propane, natural gas, or electric resistance as the primary heating system providing heating for a majority of the season season. If an existing oil, propane, or natural gas system will be left in place, customer must either install an integrated control listed on the EnergizeCT QPL (https://energizect.force.com/midstream/file-asset/MiniSplit_Air_Source_Heat_Pump_QPL) or must certify that an existing EMS is capable of operating both the heat pump and existing heating system. Documentation of control sequence is required. For electric resistance backup heat, a temperature set point differential should be 2 degrees or greater. The following are required for ALL measures: (1) Proposal to customer must include Equipment Manufacturer & Model Numbers as well as Integrated Control Manufacturer & Model Numbers (if pre-existing heating system will not be fully removed/disconnected). The integrated control must be on the EnergizeCT QPL (use the link below to download the QPL). (2) Proposal must clearly state if the pre-existing system will be fully removed, disconnected, or left in place. (3) ALL specification sheets and supporting documents showing options selected and installed cost of the equipment. (4) Data fields (in yellow) on applicable tabs MUST BE FILLED IN (5) AHRI rating sheet (example on right) is required for each proposed unit, and must be submitted with this form NOTE: New construction and major renovation projects do not qualify.
B5: Download the EnergizeCT QPL
B6: Instructions: Populate the table below
B8: Total Project Cost
B9: In the table that follows, select any cell in the row and then make edits to the existing and proposed equipment.
C10: Existing Equipment | N10: Proposed High Efficiency Water Source Heat Pumps Units
B11: Unit ID | C11: Existing Equipment Qty | D11: Existing Equipment / System | E11: Existing Equipment Input Capacity (Btu/h) | F11: Year of Equipment Manufacturer | G11: Existing Manufacturer | H11: Existing Model Number | I11: Existing AFUE (%) | J11: Existing Thermal Efficiency (%) | K11: Existing Combustion Efficiency (%) | L11: Fully replacing pre-existing heating System ? | M11: What Fuel Type is being displaced ? | N11: Proposed Qty | O11: Proposed Manufacturer/Outdoor Unit Model # | P11: Proposed Installed Category or Type | Q11: AHRI Values for Ground Loop (Closed Loop) (*Program eligibility is based on this value.) | U11: AHRI Values for Installed Equipment Type | Y11: Fuel Optimization: Heat Pump Displacing Fossil Fuel Heat? | Z11: Fuel Optimization: Base Heating Fuel Being Displaced
Q12: Proposed AHRI Ground Loop- Closed Loop Btu/h Cooling Capacity | R12: Proposed AHRI Ground Loop- Closed Loop Btu/h Heating Capacity | S12: Proposed AHRI Ground Loop- Closed Loop Installed EER | T12: Proposed AHRI Ground Loop- Closed Loop Installed COP | U12: Btu/h Cooling Capacity | V12: Btu/h Heating Capacity | W12: Cooling EER | X12: Heating COP
B13: example: WSHP-1 | C13: 2 | D13: Boiler | E13: XYZ COMPANY | L13: Yes | M13: Oil | N13: 2 | O13: BB(L/R/B/P/F/C/G/H)120A*(6/F | P13: Water-to-Air: Ground Loop (Closed Loop | Q13: 125000 | R13: 98500 | S13: 14.8 | T13: 3.5 | U13: 124000 | V13: 156000 | W13: 13.9 | X13: 4.7 | Y13: Full | Z13: Fossil Fuel
B33: Incentives
B34: Ground Source Heat Pump Equipment
E35: Standard Efficiency
B36: Type | D36: Nominal Tons | E36: Minimum Qualifying EER (based on AHRI) | F36: Minimum Qualifying COP (based on AHRI) | G36: Incentive ($/Heating Ton)
B37: Brine to Air Heat Pump Equipment | D37: < 11.3 | E37: 17.1 | F37: 3.6 | G37: $4,000 capped at Eversource: $600,000 Avangrid: $400,000
B38: Brine to Water Heat Pump Equipment Equipment | D38: < 5.4 | E38: 16.1 | F38: 3.1
B39: Brine to Water Heat Pump Equipment Equipment | D39: ≥5.4 <11.3 | E39: 16.1 | F39: 3
B42: Note:

Sheet VRF-VRV (hidden)
B1: V R F S Y S T E M S
A2: =ROW(B11) -> 11 | B2: h | H2: h | O2: h | S2: h | X2: h
B4: Participant must obtain conditional approval from the Utilities prior to the purchase or installation of any energy efficiency measures to be eligible to receive efficiency incentives. Equipment must be installed by a contractor participating in the Energize Connecticut Heat Pump Installer Network in the service territory of the Participating Utility and must replace oil, propane, natural gas, or electric resistance as the primary heating system providing heating for a majority of the season season. If an existing oil, propane, or natural gas system will be left in place, customer must either install an integrated control listed on the EnergizeCT QPL (https://energizect.force.com/midstream/file-asset/MiniSplit_Air_Source_Heat_Pump_QPL) or must certify that an existing EMS is capable of operating both the heat pump and existing heating system. Documentation of control sequence is required. For electric resistance backup heat, a temperature set point differential should be 2 degrees or greater. The following are required for ALL measures: (1) Proposal to customer must include Equipment Manufacturer & Model Numbers as well as Integrated Control Manufacturer & Model Numbers (if pre-existing heating system will not be fully removed/disconnected). The integrated control must be on the EnergizeCT QPL. (2) Proposal must clearly state if the pre-existing system will be fully removed, disconnected, or left in place. (3) ALL specification sheets and supporting documents showing options selected and installed cost of the equipment. (4) Data fields (in yellow) on applicable tabs MUST BE FILLED IN (5) AHRI rating sheet (example on right) is required for each proposed unit, and must be submitted with this form NOTE: New construction and major renovation projects do not qualify.
B5: Instructions: To populate table rows use green buttons that follow:
B6: Total Project Cost
B7: In the table that follows, select any cell in the row and then make edits to the existing and proposed equipment using yellow cells above.
C8: Existing Equipment | O8: Proposed VRF System Equipment
B9: Unit ID | C9: Existing Equipment Qty | D9: Existing Equipment / System | E9: Existing Equipment Input Capacity (Btu/h) | F9: Year of Equipment Manufacturer | G9: Existing Serial Number | H9: Existing Manufacturer | I9: Existing Model Number | J9: Existing AFUE (%) | K9: Existing Thermal Efficiency (%) | L9: Existing Combustion Efficiency (%) | M9: Fully replacing pre-existing heating System ? | N9: What Fuel Type is being displaced ? | O9: Unit ID | P9: Outdoor Unit Quantity | Q9: Manufacturer/ Outdoor Unit Model # | R9: Age of Existing Equipment (Years) | S9: Early Retirement / Dual Baseline Eligible? | T9: Indoor Unit Type | U9: VRF Classification | V9: Cooling Capacity* (Btu/hr) | W9: Heating Capacity* (Btu/hr) | X9: Cooling EER | Y9: Cooling IEER | Z9: Heating COP at 47°F | AA9: Heating COP at 17°F | AB9: Fuel Optimization: Heat Pump Displacing Fossil Fuel Heat? | AC9: Fuel Optimization: Base Heating Fuel Being Displaced
B10: example: VRF-1 | D10: Boiler | M10: Yes | N10: Natural Gas | O10: XYZ | P10: 1 | Q10: XYR-100056D | R10: 15 | S10: No | T10: Ducted | U10: Cooling Only | V10: 10.5 | W10: 10.5 | X10: 13 | AB10: Full | AC10: Fossil Fuel
B30: Incentives
B31: Size (BTUs) | D31: Nominal Tons | E31: Minimum Qualifying EER | F31: Minimum Qualifying COP | G31: Incentive $/Ton
B32: ≤65,000 | D32: <5.4 - 11.3 | E32: AHRI rates VRF units this size and smaller as air source heat pumps. Those ratings and incentive values will apply to this program.
B33: ≥65,000 to ≤135,000 | D33: 5.4 - 11.3 | E33: 11.3 EER, 18.9 IEER | F33: 3.4 at 47°F, 2.25 at 17°F | G33: $1,000 capped at Eversource: $500,000 Avangrid: $300,000
B34: >135,000 to ≤240,000 | D34: 11.3 – 20 | E34: 12.2 EER, 18 IEER | F34: 3.7 at 47°F, 2.9 at 17°F
B35: ≤240,000 | D35: >20 | E35: 10.3 EER, 16.4 IEER | F35: 3.3 at 47°F, 2.2 at 17°F
B38: Note:-

Sheet Chillers (hidden)
B1: C H I L L E R S
B2: Participant must obtain conditional approval from the Utilities prior to the purchase or installation of any energy efficiency measures to be eligible to receive efficiency incentives. The following are required for ALL measures: (1) Proposal to customer (2) ALL specification sheets and supporting documents. Includes ALL manufacturer's rating sheets (tested at ARI IPLV conditions): - Full load (EER or kw/ton) - Part load (25%, 50%, 75%) (3) Data fields (in yellow) on applicable tabs MUST BE FILLED IN
B5: # of Chillers | C5: Age of Existing Equipment (Years) | D5: Early Retirement / Dual Baseline Eligible?
B8: Total Project Cost
B9: Occupied Cooling Load | D9: Units
B10: Load at 100 deg OA Temp | D10: Tons
B11: Load at Economizer OAT+ | D11: Tons
B12: Economizer OAT setpoint | D12: °F
B13: Load at Economizer OAT - | D13: Tons
B14: Load at 0 deg OA Temp | D14: Tons
B15: Unoccupied Cooling Load | D15: Units
B16: Load at 100 deg OA Temp | D16: Tons
B17: Load at Economizer OAT+ | D17: Tons
B18: Economizer OAT setpoint | D18: °F
B19: Load at Economizer OAT - | D19: Tons
B20: Load at 0 deg OA Temp | D20: Tons
B21: Base Plant
B22: Base Lead Chiller | L22: Base Lag Chiller
B23: Description: | H23: Chiller Efficiencies | K23: Units | L23: Description: | R23: Chiller Efficiencies | U23: Units
I24: Rated Tons@ ARI | K24: Tons | S24: Rated Tons@ ARI | U24: Tons
B25: Chiller Type | I25: Air/Water cooled? | J25: =IF(INT(LEFT(C25,1))=2,"A","W") ->  | L25: Chiller Type | S25: Air/Water cooled? | T25: =IF(INT(LEFT(M25,1))=2,"A","W") -> 
B26: High Effiency Chiller Plant
B27: EE Lead Chiller | L27: EE Lag Chiller
B28: Description: | H28: Chiller Efficiencies | K28: Units | L28: Description: | R28: Chiller Efficiencies | U28: Units
I29: Rated Tons@ ARI | J29: =+J24 -> 0 | K29: Tons | S29: Rated Tons@ ARI | T29: =+T24 -> 0 | U29: Tons
B30: Chiller Type | C30: =+C25 -> 0 | I30: Air/Water cooled? | J30: =+J25 ->  | L30: Chiller Type | M30: =+M25 -> 0 | S30: Air/Water cooled? | T30: =+T25 -> 
I32: Eff @ 100% Load | S32: Eff @ 100% Load
I33: Eff @ 75% Load | S33: Eff @ 75% Load
I34: Eff @ 50% Load | S34: Eff @ 50% Load
I35: Eff @ 25% Load | S35: Eff @ 25% Load
B38: Provide any additional information relevant to this project. (if more than 4 chillers, note and provide info here)

Sheet Gas Heating (hidden)
B1: N A T U R A L G A S H E A T I N G E Q U I P M E N T
A2: 19 | B2: h | G2: h
B3: Proposed:
B4: Participant must obtain conditional approval from the Utilities prior to the purchase or installation of any energy efficiency measures to be eligible to receive efficiency incentives. The following are required for ALL measures: (1) Proposal to customer (2) ALL specification sheets and supporting documents including AHRI rating sheet (3) Data fields (in yellow) on applicable tabs MUST BE FILLED IN
B5: Edits to the selected table rows below for proposed equipmnt are made in this section. | F5: Propane and oil boilers are not eligible for incentives.
B7: Total Project Cost
B8: Proposed AHRI Certified Reference Number*** | G8: *** An AHRI rating sheet is required for each proposed unit, and must be submitted with this form | Q8: AHRI rating certification: | R8: www.ahridirectory.org
B10: Existing:
B12: Edits to the selected row in the table below for existing eqipment are made in this section.
B13: In the table that follows, select any cell in the row & then make edits to the existing and proposed equipment above.
B14: EXISTING Equipment /System (if any) | C14: Existing Fuel Type | D14: Existing Total Qty | E14: Existing Back Up Qty (out of total) | F14: Existing Manufacturer | G14: Existing Model number | H14: Existing Equipment Serial Number | I14: Existing Gas Input Capacity (MBH) | J14: Existing Equipment Input Capacity (Btu/h) (out of total) | K14: Existing AFUE (%) | L14: Existing Thermal Efficiency (%) | M14: Existing Combustion Efficiency (%) (MBH) | N14: Year of Equipment Manufacturer
B15: Forced Air Furnace | C15: Natural Gas | E15: 1 | F15: Sample Mfg | G15: 5456 | I15: 300 | J15: 1 | K15: 0.8 | L15: 0.8 | M15: 0.8 | N15: 1975
B33: Unit ID | C33: Proposed Equipment | D33: Proposed Total Qty | E33: Proposed Back Up Qty (out of total) | F33: Proposed Manufacturer | G33: Proposed Model number | H33: Proposed Boiler Type / Furnace Vent Configuration | I33: Proposed Gas Input Capacity (MBH) | J33: Proposed Rated Efficiency AFUE or Thermal Efficiency (AHRI) | K33: Proposed AHRI Certified Reference Number | L33: Proposed Proposed Fuel Type
B34: B-01 | C34: Boiler - Condensing | E34: 1 | F34: YoureInHotWater | G34: HW | H34: Hot Water = 300 & = 2500 MBH | I34: 350 | J34: 96 | K34: 1234567 | L34: Electric
B53: Provide any additional information relevant to this project.
B63: Incentives | T63: Boiler: Hot Water < 300 MBH
B64: Eligibility Requirements | T64: Boiler: Hot Water = 300 & = 2500 MBH
B65: Equipment Type | C65: Size (Input MBH¹) | E65: Minimum Efficiency | G65: Incentive Amount | T65: Boiler: Hot Water Cast Iron Sectional
B66: Condensing Gas Boilers (outdoor temperature reset required) Hydronic boilers ONLY | C66: <300 | E66: ≥ 95% AFUE | G66: 5 | T66: Boiler: Steam < 300 MBH,Steam = 300 MBH
C67: ≥300 to <2,500 | E67: ≥ 95% Combustion Efficiency | T67: Boiler: Steam natural draft = 300 MBH
B68: Cast Iron Sectional Hot Water Boilers | C68: <2,500 | E68: ≥ 85% Combustion Efficiency | G68: 3 | T68: Furnace: Unknown exisiting venting
B69: Steam Boilers | C69: <2,500 | E69: ≥ 84% Combustion Efficiency | G69: 3 | T69: Furnace: Existing condensing stack
B70: Condensing Gas Furnaces | C70: <120 | E70: ≥ 95% AFUE/Thermal Efficiency | G70: 6 | T70: Furnace: Existing non-condensing stack
C71: ≥120

Sheet Sheet6 (hidden)
B1: N A T U R A L G A S H E A T I N G E Q U I P M E N T
A2: 19 | B2: h | F2: h
B3: Proposed:
B4: Participant must obtain conditional approval from the Utilities prior to the purchase or installation of any energy efficiency measures to be eligible to receive efficiency incentives. The following are required for ALL measures: (1) Proposal to customer (2) ALL specification sheets and supporting documents. (3) Data fields (in yellow) on applicable tabs MUST BE FILLED IN
B5: Edits to the selected row are made in this section.
A6: 1
B7: h | C7: =ROW(B27) -> 27
B8: Proposed Equipment | D8: Boiler - Condensing
B9: Unit ID | D9: 5
B10: Back Up Qty (out of total) | D10: 2
B11: Manufacturer | D11: 2
B12: Model number | D12: 2
B13: Boiler Type & Size | D13: Steam < 300 MBH | I13: *** Boiler Type and Size valid only when Proposed Equipment is "Boiler - Condensing"
B14: Furnace Vent Configuration | I14: *** Futance Vent Configuration valid only when Proposed Equipment is "Furance - Condensing"
B15: Gas Input Capacity (MBH) | D15: 5
B16: Rated Efficiency AFUE or Thermal Efficiency | D16: 25
B17: AHRI Certified Reference Number*** | D17: 2 | I17: *** An AHRI rating sheet is required for each proposed unit, and must be submitted with this form
B18: Proposed Fuel Type | D18: Natural Gas | I18: *** Proposed Fule Type valid only when Proposed Equipment is "Furance - Condensing"
B20: Select any cell to make edits above. | N20: AHRI rating certification: | O20: www.ahridirectory.org
Q21: Boiler - Non-Condensing
B22: PROPOSED Equipment | C22: Unit ID | D22: Back Up Qty (out of total) | E22: Manufacturer | F22: Model number | G22: Boiler Type & Size | H22: Furnace Vent Configuration | I22: Gas Input Capacity (MBH) | J22: Rated Efficiency AFUE or Thermal Efficiency (AHRI) | K22: AHRI Certified Reference Number | L22: Proposed Fuel Type
B23: Boiler - Condensing | C23: B-01 | D23: 2 | E23: 1 | F23: YoureInHotWater | G23: Hot Water ≥ 300 & ≤ 2500 MBH | H23: Unknown exisiting venting | I23: 350 | J23: 94 | K23: 1234567 | L23: Electric | Q23: Boiler - Condensing
B24: Boiler - Condensing | C24: 1 | D24: 2 | E24: 3 | F24: 4 | G24: Hot Water ≥ 300 & ≤ 2500 MBH | I24: 5 | J24: 6 | K24: 7 | L24: 56 | Q24: Boiler - Non-Condensing
B25: Boiler - Condensing | C25: 1 | D25: 2 | E25: 3 | F25: 4 | I25: 5 | J25: 6 | K25: 7 | L25: 8 | Q25: Boiler - Non-Condensing
C26: 1 | D26: 2 | E26: 3 | F26: 4 | G26: Steam < 300 MBH | H26: Unknown exisiting venting | I26: 4 | J26: 5 | K26: 6 | L26: Natural Gas | Q26: Boiler - Non-Condensing
B27: Boiler - Condensing | C27: 5 | D27: 2 | E27: 2 | F27: 2 | G27: Steam < 300 MBH | I27: 5 | J27: 25 | K27: 2 | L27: Natural Gas | Q27: Boiler - Non-Condensing
B29: Existing:
B31: Edits to the selected row are made in this section.
A32: 2
B33: h | C33: =ROW(B49) -> 49
B34: Existing Equipment (if any) | D34: Hot Water Boiler
B35: Fuel | D35: Natural Gas
B36: Total Qty | D36: 2
B37: Back Up Qty (out of total) | D37: 2
B38: Manufacturer | D38: 2
B39: Model number | D39: 5
B40: Gas Input Capacity (MBH) | D40: 5
B42: Select any cell to make edits above.
B44: EXISTING Equipment (if any) | C44: Fuel | D44: Total Qty | E44: Back Up Qty (out of total) | F44: Manufacturer | G44: Model number | I44: Gas Input Capacity (MBH)
B45: Hot Water Boiler | C45: Natural Gas | D45: 2 | E45: 1 | F45: YoureNot | G45: C00L123 | I45: 300
B46: Hot Water Boiler | C46: Natural Gas
B47: Hot Water Boiler | C47: Propane | D47: 1 | E47: 2 | F47: 3 | G47: 4 | I47: 5
B48: Hot Water Boiler | C48: Oil | D48: 1 | E48: 2 | F48: 3 | G48: 4 | I48: 5
B49: Hot Water Boiler | C49: Natural Gas | D49: 2 | E49: 2 | F49: 2 | G49: 5 | I49: 5
B51: Provide any additional information relevant to this project.
B60: Incentives
B61: Eligibility Requirements
B62: Equipment Type | C62: Size (Input MBH¹) | E62: Minimum Efficiency | G62: Incentive Amount
B63: Condensing Gas Boilers* | C63: Hot Water <300 | E63: ≥ 95% AFUE² | G63: $5/Input MBH
C64: Hot Water ≥ 300 & ≤ 2500 MBH | E64: ≥ 95% Thermal Efficiency
B65: Gas Boilers* | C65: Hot Water Cast Iron Sectional | E65: ≥ 85% Thermal Efficiency | G65: $3/Input MBH
C66: Steam < 300 MBH | E66: ≥ 84% AFUE²
C67: Steam ≥300 to <2,500 | E67: ≥ 84% Thermal Efficiency
B68: Condensing Gas Furnaces* | C68: <2,500 | E68: ≥ 95% AFUE²/Combustion Efficiency | G68: $6/Input MBH
B69: Condensing Gas Unit Heaters | C69: <2,500 | E69: ≥ 90% Thermal Efficiency | G69: $12/Input MBH
B70: Gas Fired Absorption Heat Pumps (Eversource Only) | C70: n/a | E70: ≥ 100% Heating Efficiency | G70: $500/Ton
B71: Natural Gas Infrared Radiant Heaters (low intensity)* | C71: <50 | E71: n/a | G71: $500/Unit
C72: ≥50 to <150 | E72: n/a | G72: $550/Unit
C73: ≥150 to <175 | E73: n/a | G73: $650/Unit
C74: ≥175 | E74: n/a | G74: $850/Unit

Sheet Sheet1 (hidden)
A1: Hot Water < 300 MBH
A2: Hot Water ≥ 300 & ≤ 2500 MBH
A3: Hot Water Cast Iron Sectional
A4: Steam < 300 MBH
A5: Steam, natural draft, ≥ 300 MBH

Sheet DHW (hidden)
B1: D O M E S T I C H O T W A T E R ( D H W ) H E A T E R
B2: h | F2: h
B3: Gas Fired Water Heaters | C3: & Heat Pump Water Heaters
A4: 1
B5: h | C5: =ROW(B25) -> 25 | F5: h
B6: Participant must obtain conditional approval from the Utilities prior to the purchase or installation of any energy efficiency measures to be eligible to receive efficiency incentives. The following are required for ALL measures: (1) Proposal to customer (2) ALL specification sheets and supporting documents including the AHRI rating sheet. (3) Data fields (in yellow) on applicable tabs MUST BE FILLED IN
B8: Total Project Cost
B9: Edits to the selected table rows below are made in this section.
B10: In the table that follows, select any row and then make edits in the yellow cells.
H11: Rated
F12: Input | G12: Storage | H12: Thermal Efficiency (E(t)) | I12: Rated
E13: Number of | F13: Capacity | G13: Capacity | H13: or | I13: DHWH
E14: DHWHs | F14: of Each | G14: of Each | H14: Uniform Energy Factor (UEF) | I14: Input
B15: DHWH | C15: DHWH Model | D15: Type of DHWH | E15: To Be | F15: DHWH | G15: DHWH | H15: (as a decimal) | I15: Standby Loss
B16: Manufacturer | C16: Number | D16: Select from Dropdown | E16: Installed | F16: (MBH) | G16: (gallon) | H16: Value | I16: (BTU/hr)
B17: TRANE | C17: XYZ-1000678 | D17: On Demand | E17: 3 | F17: 18 | G17: 30 | H17: 0.65
B34: Equipment Type | C34: Size (Input MBH)¹ | D34: Minimum Efficiency
B35: Storage-Type Domestic Water Heater | C35: n/a | D35: ≥ 90% Thermal Efficiency
B36: On-Demand Domestic Water Heater | C36: < 200 | D36: ≥ 0.85 Energy Factor
C37: ≥ 200 | D37: ≥ 90% Thermal Efficiency
B38: Large Domestic Hot Water Boiler | C38: > 75 | D38: ≥ 85% Thermal Efficiency
B40: Heat Pump Water Heaters:
B41: In the table that follows, select any row and then make edits in the yellow cells.
F44: Storage
D45: Number of | F45: Capacity | G45: Proposed
D46: DHWHs | F46: of Each | G46: Rated | H46: System
B47: DHWH | C47: DHWH Model | D47: To Be | E47: Input | F47: DHWH | G47: Performance | H47: Volts/Amps
B48: Manufacturer | C48: Number | D48: Installed | E48: kW | F48: (gallon) | G48: (COP or UEF)
B49: TRANE | C49: XYZ-10068 | D49: 3 | E49: 150 | F49: 15 | H49: 120V/15A
B67: Heat Pump Hot Water Heater Incentives
B68: Eligibility Requirements
B69: Rated Storage Volume | C69: Minimum Efficiency | D69: Incentive per Unit | E69: Qualification
B70: ≥20 gal to ≤55 gal | C70: ENERGY STAR certified – UEF4 ≥3.40 or ≥2.20 for 120 Volt/15 Amp circuit system | D70: 1000 | E70: ENERGY STAR®
B71: >55 gal to ≤120 gal | C71: ENERGY STAR certified – UEF ≥3.40 or ≥2.20 for 120 Volt/15 Amp circuit system | D71: 1000 | E71: ENERGY STAR®
B72: >120 gal | C72: >3.6 COP | D72: 1400
B80: Note:-

Sheet EMS proposed (hidden)
B3: Proposed EMS Description
C5: Provide on this sheet a complete description of the PROPOSED EMS including:
C7: a. | D7: The building systems listed previously that the proposed EMS system will control.
C8: b. | D8: A detailed narrative identifying the EMS control strategies that will be used.
C9: c. | D9: EMS points list separated by input points and output points.
C10: d. | D10: Cost Proposal - attach separately.
B12: EXAMPLE: | C12: Proposed System
D13: It is proposed to replace the existing pneumatic Andover Continuum system with a new Delta Control system. In addition to added capabilities to reduce energy costs as well as improve comfort, it also provides the ability for the operations team to access the building system via a web browser on PC, smartphone, or tablet.
C15: Proposed System Strategy
D16: The Delta Controls system will implement a Static Pressure Reset (Critical Zone) on each RTU. The Delta controllers on each VAV will communicate its respective damper position to the RTU controller. The RTU controller will reset the duct static pressure setpoint to provide just enough air so that at least one VAV damper is almost wide open saving fan horsepower. Additionally reduced ventilation minimums based on ASHRAE Guideline 36 & ASHRAE Standard 62.1 as overcooling has been identified in some offices & labs.
C19: Proposed System
G33: Examples of Control Strategies that qualify for incentives:
C34: Proposed System Strategy
F35: 1 | G35: Optimal Start Stop - (air handling systems)
H36: - a self learning system that adjusts start times based on outdoor air conditions. Includes morning start up with dampers closed.
F39: 2 | G39: Co2 or Demand Control Ventilation - (Air handling units)
H40: Monitors space (return air) CO2 and adjusts outside air dampers to maintain required indoor air quality without over ventilating.
H41: Note: This is for systems that serve areas where the outside air is solely dependent on occupancy. Labs, kitchens, manufacturing areas may not be possible.
F42: 3 | G42: Hot Water Temperature Reset (Boilers)
H43: boiler temperature modified based on outside air temperature (higher during colder weather and lower when milder weather). (required by code for new boilers)
F44: 4 | G44: Chilled Water Temperature Reset (Chillers)
H45: - Increases chiller discharge temperature when outside air temperature is lower and humidity is not an issue. (required by code for new chillers)
F46: 5 | G46: Condenser Water Reset - (water cooled chillers)
H47: -Condenser water setpoint is lowered when outside air conditions permit (based on wet bulb). (required by code for new chillers)
F48: 6 | G48: Static pressure reset (VAV air systems)
H49: - System will monitor damper positions of all VAV boxes on the system. If dampers are all <80% open the static pressure setpoint will be reduced. Will adjust up when necessary.
F50: 7 | G50: Discharge Temperature Reset (VAV reheat system)
H51: - system will monitor reheats of all VAV reheat boxes on the system. Based on the reheat being done the AHU discharge setpoint is raised and lowered reducing reheat when conditions permit. System needs to also make ensure proper dehumidification.

Sheet Kitchen Appliances (hidden)
B1: C O M M E R I C A L K I T C H E N E Q U I P M E N T - E N E R G Y S T A R ®
A2: 19 | B2: h | F2: h
A3: =ROW(B24) -> 24 | B3: h
B5: Participant must obtain conditional approval from the Utilities prior to the purchase or installation of any energy efficiency measures to be eligible to receive efficiency incentives. The following are required for ALL measures: (1) Proposal to customer (2) ALL specification sheets and supporting documents. (3) Data fields (in yellow) on applicable tabs MUST BE FILLED IN
B7: Edits to the selected row are made in this section.
B9: Location and/or Unit ID
B10: Equipment Type (Select Below) | E10: Provide any additional information felt to be relevant here.
B15: Manufacturer and Model Number
B16: Type, Size or Capacity
B17: Number of Units
B19: Select any cell to make edits above.
J20: Refrigerator, Solid Door
B21: Commercial Kitchen Units Proposed | H21: (Prescriptive Incentives - can apply directly on-line)
B22: Unit ID | C22: Equipment Type | D22: Manufacturer and Model Number | E22: Type, Size or Capacity | F22: Number of Units | H22: Provide the Energy Star rating form for each unit
B23: Example 1: Refrigerator 1 | C23: Refrigerator Solid Door | D23: Turbo Air Pro 50R | E23: 50 cubic feet | F23: 1
J24: Refrigerator, Solid Door
B27: Note: Incentives for Natural Gas appliances are available to Eversource Gas, Connecticut Natural Gas and customers on a firm gas (non interruptible) account
B28: Backups Required: Submittal showing ENERGY STAR® rating with Equipment Manufacturer, Model number and capacity
B30: Eligible Equipment
B31: Equipment Type | C31: Type, Size, Capacity | D31: Lifetime (years) | E31: Incentives $/ Unit
B32: Refrigerator, Solid Door, Self Contained | C32: 30-49.9 cubic feet | D32: 12 | E32: 175
C33: 50 cubic feet or larger | E33: 300
B34: Freezer, Glass Door, Self Contained | C34: 30-49.9 cubic feet | D34: 12 | E34: 1150
C35: 50 cubic feet or larger | E35: 1975
B36: Freezer, Solid Door, Self Contained | C36: Less than 15 cubic feet | D36: 12 | E36: 125
C37: 15-29.9 cubic feet | E37: 200
C38: 30-49.9 cubic feet | E38: 200
C39: 50 cubic feet or larger | E39: 500
B40: Ice Machines (Ice Making Head units only) | C40: Harvest Rate | D40: 12 | E40: -
C41: 101-200 lbs/day | E41: 50
C42: 201-300 lbs/day | E42: 50
C43: 301-400 lbs/day | E43: 75
C44: 401-500 lbs/day | E44: 75
C45: 501-1000 lbs/day | E45: 75
C46: 1001-1500 lbs/day | E46: 100
C47: Greater than 1500 lbs/day | E47: 100
B48: Low Temp Electric or Natural Gas Dishwasher Note: Building must have Electric or Gas Hot Water | C48: Under Counter | D48: 10 | E48: 300
C49: Door Type | D49: 15 | E49: 1200
C50: Single Tank Conveyor | D50: 20 | E50: 125
B51: High Temp Electric or Natural Gas Dishwasher Note: Building must have Electric or Gas Hot Water or unit must have Electric or Gas Hot Water Booster | C51: Under Counter | D51: 10 | E51: 750
C52: Door Type | D52: 15 | E52: 375
C53: Single Tank Conveyor | D53: 20 | E53: 200

Sheet Cooking Equipment (hidden)
B1: C O M M E R C I A L C O O K I N G E Q U I P M E N T - E N E R G Y S T A R ®
A2: 19 | B2: h | F2: h
A3: =ROW(B22) -> 22 | B3: h
B5: Participant must obtain conditional approval from the Utilities prior to the purchase or installation of any energy efficiency measures to be eligible to receive efficiency incentives. The following are required for ALL measures: (1) Proposal to customer (2) ALL specification sheets and supporting documents. (3) Data fields (in yellow) on applicable tabs MUST BE FILLED IN
B7: Edits to the selected row are made in this section.
B9: Unit ID
B10: Equipment Type (Select Below)
E11: Provide any additional information felt to be relevant here.
B13: Manufacturer and Model Number
B14: Type, Size or Capacity
B15: Number of Units
B17: Select any cell to make edits above.
B19: Commercial Kitchen Units Proposed
B20: Unit ID | C20: Equipment Type | D20: Manufacturer | E20: Model Number | F20: Type, Size or Capacity | G20: Number of Units
B21: Example 1: Hot Food Holding Cabinet | C21: Hot Food Holding Cabinet | F21: 18 cubic feet | G21: 1
B25: *Provide the Energy Star rating form for each unit
B27: Note: Incentives for Natural Gas appliances are available to Eversource Gas, Connecticut Natural Gas and customers on a firm gas (non interruptible) account
B28: Backups Required: Submittal showing ENERGY STAR® rating with Equipment Manufacturer, Model number and capacity
B30: Eligible Equipment
B31: Equipment Type | C31: Type, Size, Capacity | D31: Lifetime (years) | E31: Incentives $/ Unit
B32: Electric Hot Food Holding Cabinets | C32: Product Interior Volume (Cubic Feet) | D32: 12 | E32: -
C33: 0 < V < 13 | E33: 650
C34: 13 ≤ V < 28 | E34: 975
C35: 28 ≤ V | E35: 900
B36: Electric Convection Oven | D36: 12 | E36: 350
B37: Natural Gas Convection Oven | D37: 12 | E37: 500
B38: Electric Fryer | D38: 12 | E38: 200
B39: Natural Gas Fryer | D39: 12 | E39: 750
B40: Electric Griddle | D40: 12 | E40: 400
B41: Natural Gas Griddle | D41: 12 | E41: 450
B42: Electric Steam Cooker | D42: 12 | E42: 1125
B43: High Efficiency Natural Gas Steamer | D43: 12 | E43: 750
B54: Incentives
B55: Eligibility Requirements
B56: Equipment Type | C56: Type, Size, Capacity | D56: Incentives $/ Unit
B57: Electric Hot Food Holding Cabinets | C57: Product Interior Volume (Cubic Feet) | D57: -
C58: 0 < V < 13 | D58: 650
C59: 13 ≤ V < 28 | D59: 975
C60: 28 ≤ V | D60: 900
B61: Electric Convection Oven | D61: 350
B62: Natural Gas Convection Oven | D62: 500
B63: Electric Fryer | D63: 200
B64: Natural Gas Fryer | D64: 750
B65: Electric Griddle | D65: 400
B66: Natural Gas Griddle | D66: 450
B67: Electric Steam Cooker | D67: 1125
B68: High Efficiency Natural Gas Steamer | D68: 750
B69: Note: Incentives for natural gas appliances are available to customers on a firm gas (non interruptible) account.

Sheet HW Usage (hidden)
B1: H O T W A T E R U S A G E R E D U C T I O N
A2: 19 | B2: h | F2: h
B3: Reduction of HW use through replacement of pre-rinse spray valves, shower heads, and faucet aerators with low flow units averaging 1.6 gpm, 2.0 gpm and 1.5 gpm respectively.
B6: Participant must obtain conditional approval from the Utilities prior to the purchase or installation of any energy efficiency measures to be eligible to receive efficiency incentives. The following are required for ALL measures: (1) Proposal to customer (2) ALL specification sheets and supporting documents. (3) Data fields (in yellow) on applicable tabs MUST BE FILLED IN
P9: school
O13: Yes | P13: =IF(C15=O13,0.75,1) -> 1
B14: Type of water heat | O14: No
B15: Is this a school?
B16: Furnish and Install $ | M16: 1-electric | N16: AKWHw | O16: kWh | P16: kW | Q16: Estimated Electric Savings
B17: Total Project Cost | P17: CCF/day | Q17: Estimated Gas Savings
Q18: Estimated Propane Savings
B19: Application | C19: Fixture Type | D19: Quantity | Q19: Estimated Oil Savings
B20: Grocery | C20: Spray Valve
B21: Non-Grocery | C21: Spray Valve
B22: Grocery | C22: Showerhead
B23: Non-Grocery | C23: Showerhead
B24: Grocery | C24: Faucet Aerators
B25: Non-Grocery | C25: Faucet Aerators
C26: Totals | D26: =SUM(D20:D25) -> 0

Sheet VFDs (hidden)
B1: V F D S - H V A C O N L Y
B2: h | F2: h
B3: Use Custom Measure form for process motors
B4: Participant must obtain conditional approval from the Utilities prior to the purchase or installation of any energy efficiency measures to be eligible to receive efficiency incentives. The following are required for ALL measures: (1) Proposal to customer (2) ALL specification sheets and supporting documents. (3) Data fields (in yellow) on applicable tabs MUST BE FILLED IN
B6: Existing System Controls
B7: Please list the existing sensors and controls that will be used in the systems installing VFDs. Please also include the sequences of operation that will be used for varying the VFD speed.
B9: Constant Volume RTUs (Staged fan speed conversion) | M9: Total Project Cost
B10: Edits to the selected table rows below are made in this section.
G11: Fan Speed (%)
C12: RTU ID | D12: Qty | E12: Motor HP | F12: Annual Hours | G12: Heat/Cool Stage 1 | H12: HP | I12: BHP | J12: Heat/Cool Stage 2 | K12: Heat/Cool Off | L12: Installed Cost
B29: FAN MOTORS: Air Handling Units (AHUs, RTUs) *
B30: *Motors must be at least 1 HP to qualify.
B31: Fan Type Code | C31: Description | D31: Fan ID | E31: Quantity | F31: Motor HP | G31: Installed Cost | H31: BHP | I31: motor Eff
B49: PUMPS: Chilled Water (ChWP)* | D49: *Motors must be at least 1 HP to qualify.
B51: Pump ID | C51: VFD Installation Type | D51: Total Quantity | E51: Back up Quantity | F51: Override Hours | G51: Motor HP | H51: BHP | I51: motor Eff | J51: Installed Cost
B71: PUMPS: Hot Water (HW) * | D71: *Motors must be at least 1 HP to qualify.
B73: Pump ID | C73: VFD Installation Type | D73: Total Quantity | E73: Back up Quantity | F73: Override Hours | G73: Motor HP | H73: BHP | I73: motor Eff | J73: Installed Cost
B91: Cooling Tower Fans:
B92: *Motors must be at least 1 HP to qualify.
B94: Tower ID | C94: VFD Installation Type | D94: Qty | E94: Override Hours | F94: Motor HP | G94: Installed Cost | H94: BHP | I94: motor Eff
B117: Control - Describe how the speed of each motor will be controlled. (Ex. differential pressure sensors and VAV boxes will be added at locations x, y, and z etc.)

Sheet ERV (hidden)
B1: E N E R G Y R E C O V E R Y V E N T I L A T I O N ( E R V ) U N I T S
A2: 19 | B2: h | F2: h
B3: Note: Code will be used as the baseline in determining energy savings and incentives.
B4: Participant must obtain conditional approval from the Utilities prior to the purchase or installation of any energy efficiency measures to be eligible to receive efficiency incentives. The following are required for ALL measures: (1) Proposal to customer (2) ALL specification sheets and supporting documents. (3) Data fields (in yellow) on applicable tabs MUST BE FILLED IN
B9: Incremental cost to add heat recovery to project (design, equipment,installation and commissioning)
B11: Unit Designation | C11: Manufacturer and Model # | D11: Return Air DB TEMP. (Default 72 degrees) | E11: Return air enthalpy, h (default 26.45) | F11: Cooling EER | G11: Heating fuel | H11: Heating Efficiency (Defaults: Fossil Fuel Boiler (New) = 90% Furnace (New) = 85% Fossil Fuel Retrofit = 80% Electric = 200%) | I11: Building Balance Point (default 55°F) | J11: Total Heating Energy Recovery Effectiveness (%) | K11: Total Cooling Energy Recovery Effectiveness (%) | L11: Heat Recovery By-pass | M11: Exhaust Airflow (cfm) | N11: Heat recovery required by code? | O11: =IF(O$13="Yes","N/A","System Type") -> System Type | P11: Supply Fan Power (hp) | Q11: Return Fan Power (hp)
B24: From IECC 2021 - Code Requirement
B25: Energy Recovery Required by code if airflow exceeds values in the table below.
B26: Some Exceptions/Exemptions apply in 2021 IECC Section C403.7.4.2.
B27: TABLE C403.7.4.2(1)
B28: ENERGY RECOVERY REQUIREMENT (VENTILATION SYSTEMS OPERATING LESS THAN 8,000 HOURS PER YEAR)
B29: PERCENT (%) OUTDOOR AIR AT FULL DESIGN AIRFLOW RATE
B30: ≥ 10% and < 20% | C30: ≥ 20% and < 30% | D30: ≥ 30% and < 40% | E30: ≥ 40% and < 50% | F30: ≥ 50% and < 60% | G30: ≥ 60% and < 70% | H30: ≥ 70% and < 80% | I30: ≥ 80%
B31: DESIGN SUPPLY FAN AIRFLOW RATE (cfm)
B32: ≥ 26,000 | C32: ≥ 16,000 | D32: ≥ 5,500 | E32: ≥ 4,500 | F32: ≥ 3,500 | G32: ≥ 2,000 | H32: ≥ 1,000 | I32: > 120
B34: TABLE C403.7.4.2(2)
B35: ENERGY RECOVERY REQUIREMENT (VENTILATION SYSTEMS OPERATING NOT LESS THAN 8,000 HOURS PER YEAR)
B36: PERCENT (%) OUTDOOR AIR AT FULL DESIGN AIRFLOW RATE
B37: ≥ 10% and < 20% | C37: ≥ 20% and < 30% | D37: ≥ 30% and < 40% | E37: ≥ 40% and < 50% | F37: ≥ 50% and < 60% | G37: ≥ 60% and < 70% | H37: ≥ 70% and < 80% | I37: ≥ 80%
B38: DESIGN SUPPLY FAN AIRFLOW RATE (cfm)
B39: ≥ 200 | C39: ≥ 130 | D39: ≥ 100 | E39: ≥ 80 | F39: ≥ 70 | G39: ≥ 60 | H39: ≥ 50 | I39: ≥ 40
B45: Note:-

Sheet DCV (hidden)
B1: D E M A N D C O N T R O L V E N T I L A T I O N ( D C V ) O F O U T S I D E A I R W I T H C O 2 S E N S O R S | AA1: N
A2: =ROW(#REF!) ->  | B2: h | G2: h
B4: Participant must obtain conditional approval from the Utilities prior to the purchase or installation of any energy efficiency measures to be eligible to receive efficiency incentives. The following are required for ALL measures: (1) Proposal to customer (2) ALL specification sheets and supporting documents. (3) Data fields (in yellow) on applicable tabs MUST BE FILLED IN
B6: Incremental cost to add CO2 sensors to project including design, installation and commissioning:
B8: # of CO2 Sensors
B11: Total Project Cost
B13: Select any cell in the table to make edits.
B14: Unit ID | C14: Return Air DB TEMP. (Default 72 degrees) | D14: Return air enthalpy, h (default 26.45) | E14: Total Airflow (cfm) | F14: Outside Air (%) | G14: Average Airflow Reduction (%) | H14: Cooling EER | I14: Heating fuel | J14: Heating Efficiency | K14: Building Balance Point (°F) | L14: Sensor Location
B15: XYZ-100024 | C15: 72 | D15: 26 | E15: 1200 | F15: 0.3 | G15: 0.1 | H15: 12 | I15: Fossil Fuel | J15: 0.9 | K15: 50 | L15: Return Duct
B32: Note:-

Sheet Pipe Ins (hidden)
B1: P I P E A N D B L A N K E T I N S U L A T I O N
B2: h | F2: h
H3: 3E Plus Output:
B4: 1 | C4: Use of 3E Plus software (recommended by the US DOE) to calculate the required Heat Loss Factors is recommended by our CT PSD. All other approaches will require an engineering review.
C5: https://insulationinstitute.org/tools-resources/free-3e-plus/
B6: 2 | C6: Use distinct Item ID's for each individual 3E Plus calculation and enter that ID below. All 3E Plus Output Sheets with Heat Loss Factors must be submitted. *.pdf's are acceptable.
B7: 3 | C7: Use the actual Bare Pipe Surface temperature for the Process Temperature in 3E as much as possible.
B8: 4 | C8: Use the local temperature near the piping for the Ambient Temperature. This temperature is not the building set point and will often be hotter in ceilings and mechanical rooms.
B9: 5 | C9: Wind speed is 0.0 for inside piping. There needs to be data to justify wind speeds other than 0.0 for outside pipe.
B10: 6 | C10: Blanket Insulation product literature for valves, etc. indicating thermal conductivity values is required.
B11: 7 | C11: Gas and electric account numbers that are associated with the insulated items are required.
B12: 8 | C12: Provide photos that are representative of major equipment and pipe sections.
C13: Participant must obtain conditional approval from the Utilities prior to the purchase or installation of any energy efficiency measures to be eligible to receive efficiency incentives. The following are required for ALL measures: (1) Proposal to customer (2) ALL specification sheets and supporting documents. (3) Data fields (in yellow) on applicable tabs MUST BE FILLED IN
C15: Total Project Cost
C16: Provide any additional information felt to be relevant here.
A21: 1 | C21: Pipe:
C22: Edits to the selected row are made in this section. | E22: Note: "Use site AFUE if available."
E24: Heating Source | F24: condensing
E25: Burner Efficiency (%) | F25: 0.1
C26: Select any row in the table below and use yellow cells above to make edits.
C27: Location | D27: 3E Plus Sheet Code | E27: Type of Fluid | F27: Nominal Pipe Size (inches) | G27: Insulation Thickness (inches) | H27: Annual Hours of Operation | I27: Pipe Linear Length (ft.) | J27: Bare Pipe Heat Loss (BTU/hr/ft) | K27: Insulated Heat Loss (BTU/hr/ft) | L27: Qty 90's or 45's | M27: Qty Tee's | N27: Surface Temp. (degree F) | O27: Ambient Temp. (degree F)
C28: ex. chiller room | D28: 3EPL12 | E28: Chilled Water | F28: 5 | G28: 1 | H28: 2250 | I28: 500 | L28: 60 | M28: 20 | N28: 44 | O28: 68
A46: 2 | B46: 2 | C46: Blanket:
C47: Edits to the selected row are made in this section.
C48: Select any row in the table below and use yellow cells above to make edits.
C49: Qty | D49: Location | E49: 3E Plus Sheet Code | F49: Fitting Description | G49: Type of Fluid | H49: Nominal Pipe Size (inches) | I49: Insulation Thickness (inches) | J49: Annual Hours of Operation | K49: Blanket Surface Area (Sq. Ft) | L49: Ambient Temp. (degree F) | M49: Surfacet Temp. (degree F) | N49: Bare Pipe Heat Loss (BTU/hr/ft) | O49: Insulated Heat Loss (BTU/hr/ft)
C50: 10 | D50: ex. chiller room | E50: 3EPL12 | G50: Chilled Water | H50: 5 | I50: 1 | J50: 2250 | K50: 500 | L50: 68 | M50: 44

Sheet Advanced Thermostat (hidden)
A1: Participant must obtain conditional approval from the Utilities prior to the purchase or installation of any energy efficiency measures to be eligible to receive efficiency incentives. The following are required for ALL measures: (1) Proposal to customer (2) ALL specification sheets and supporting documents. (3) Data fields (in yellow) on applicable tabs MUST BE FILLED IN
B6: Measure Name: Commercial Advanced Thermostats (Must Be Energy Star Certified Smart Thermostat)
B7: The measure energy savings are calculated using deemed energy savings factors based on study results
B8: Site Specific *(Please include cut sheet with manufacturer and model number identified with submission for incentive)
B10: Total Project Cost
B12: Manufacturer and Model Number | C12: Quantity | D12: Heating Type | E12: Cooling Type | F12: Location of Thermostat | G12: Area (Square Footage) served by all thermostats in each row
B29: Notes: If "Heating - Electric Heat Pump" is selected under "Heating Type", "Cooling Not Applicable" must be selected under "Cooling Type".
B35: Note:-
Q41: ENERGY STAR Certified Smart Thermostat

Sheet Steam Traps (hidden)
B1: S T E A M T R A P R E P A I R S
A2: =ROW(B13) -> 13 | B2: h | F2: h | K2: h
B4: Participant must obtain conditional approval from the Utilities prior to the purchase or installation of any energy efficiency measures to be eligible to receive efficiency incentives. The following are required for ALL measures: (1) Proposal to customer (2) ALL specification sheets and supporting documents. (3) Data fields (in yellow) on applicable tabs MUST BE FILLED IN
B6: Edits to the selected table row below are made in this section.
B8: Total Project Cost
B10: Select any cell in the table row below and make edits to that row in the entries above.
B11: Quantity | C11: Trap # | D11: Location (Bldg/Floor/Rm#) | E11: Location (Rm/Elevation) | F11: Manfacturer | G11: Model # | H11: Type | I11: Application | J11: Line pressure (psig) | K11: Issue | L11: Pipe Size (inches) | M11: Orifice Diameter | N11: Annual Hours Active | O11: Repair or Replace | P11: Equivalent Full Load Hour Assumptions | Q11: Cost
M12: (inches) | N12: (Hours)
B29: =SUM(B$11:B$28) -> 0 | C29: Total | P29: Totals: | Q29: =SUM(Q$11:Q$28) -> 0
B35: Add any additional information here
B39: Condensate Return Line (Yes/No)
B41: Note: Based on 2020 PSD
B44: Burner Control (if avalable) | D44: (Drop down list)
B48: Result Code | C48: Loss Factor
B50: Blowing thru | C50: 0.55
B51: Leaking | C51: 0.26
B52: Not in service | C52: 0
B53: Not Tested | C53: 0
B54: OK | C54: 0
B55: Plugged | C55: 0
B57: Gauge Pressure | C57: Enthalpy
B58: (psig) | C58: (Btu/lb)
B59: 0 | C59: 0
B60: 2 | C60: 966.07
B61: 5 | C61: 960.54
B62: 10 | C62: 952.56
B63: 15 | C63: 945.68
B64: 20 | C64: =+(C63+C65)/2 -> 939.89
B65: 25 | C65: 934.09
B66: 30 | C66: =+C65+(C$70-C$65)/5 -> 929.68
B67: 35 | C67: =+C66+(C$70-C$65)/5 -> 925.27
B68: 40 | C68: =+C67+(C$70-C$65)/5 -> 920.86
B69: 45 | C69: =+C68+(C$70-C$65)/5 -> 916.45
B70: 50 | C70: 912.06
B71: 55 | C71: =+C70+(C$75-C$70)/5 -> 908.68
B72: 60 | C72: =+C71+(C$75-C$70)/5 -> 905.3
B73: 65 | C73: =+C72+(C$75-C$70)/5 -> 901.92
B74: 70 | C74: =+C73+(C$75-C$70)/5 -> 898.54
B75: 75 | C75: 895.16
B76: 80 | C76: =+C75+(C$80-C$75)/5 -> 892.34
B77: 85 | C77: =+C76+(C$80-C$75)/5 -> 889.52
B78: 90 | C78: =+C77+(C$80-C$75)/5 -> 886.7
B79: 95 | C79: =+C78+(C$80-C$75)/5 -> 883.88
B80: 100 | C80: 881.04
B81: 105 | C81: =+C80+(C$85-C$80)/5 -> 878.57
B82: 110 | C82: =+C81+(C$85-C$80)/5 -> 876.1
B83: 115 | C83: =+C82+(C$85-C$80)/5 -> 873.63
B84: 120 | C84: =+C83+(C$85-C$80)/5 -> 871.16
B85: 125 | C85: 868.68
B86: 130 | C86: =+C85+(C$90-C$85)/5 -> 866.46
B87: 135 | C87: =+C86+(C$90-C$85)/5 -> 864.24
B88: 140 | C88: =+C87+(C$90-C$85)/5 -> 862.02
B89: 145 | C89: =+C88+(C$90-C$85)/5 -> 859.8
B90: 150 | C90: 857.58
B91: 155 | C91: =+C90+(C$100-C$90)/10 -> 855.62
B92: 160 | C92: 853.66
B93: 165 | C93: 851.7
B94: 170 | C94: 849.74
B95: 175 | C95: 847.78
B96: 180 | C96: 845.82
B97: 185 | C97: 843.86
B98: 190 | C98: 841.9
B99: 195 | C99: 839.94
B100: 200 | C100: 837.95
B101: 205 | C101: =+C100+(C$110-C$100)/10 -> 836.22
B102: 210 | C102: 834.49
B103: 215 | C103: 832.76
B104: 220 | C104: 831.03
B105: 225 | C105: 829.3
B106: 230 | C106: 827.57
B107: 235 | C107: 825.84
B108: 240 | C108: 824.11
B109: 245 | C109: 822.38
B110: 250 | C110: 820.68
B111: 255 | C111: =+C110+(C$120-C$110)/10 -> 819.12
B112: 260 | C112: 817.56
B113: 265 | C113: 816
B114: 270 | C114: 814.44
B115: 275 | C115: 812.88
B116: 280 | C116: 811.32
B117: 285 | C117: 809.76
B118: 290 | C118: 808.2
B119: 295 | C119: 806.64
B120: 300 | C120: 805.03
B126: Quantity | C126: Trap # | D126: Location (Bldg/Floor/Rm#) | E126: Location (Rm/Elevation) | F126: Manfacturer | G126: Model # | H126: Type | I126: Application | J126: Line pressure (psig) | K126: Issue | L126: Pipe Size (inches) | M126: Orifice Diameter | N126: Annual Hours Active | O126: Repair or Replace | Q126: Cost
M127: (inches) | N127: (Hours)
B128: 1 | I128: Drip | J128: 0 | K128: OK | O128: No change | Q128: 0
B129: 1 | I129: Drip | J129: 0 | K129: OK | O129: No change | Q129: 0
B130: 1 | I130: Drip | J130: 0 | K130: OK | O130: No change | Q130: 0
B131: 1 | I131: Drip | J131: 0 | K131: OK | O131: No change | Q131: 0
B132: 1 | I132: Drip | J132: 0 | K132: OK | O132: No change | Q132: 0
B133: 1 | I133: Drip | J133: 0 | K133: OK | O133: No change | Q133: 0
B134: 1 | I134: Drip | J134: 0 | K134: OK | O134: No change | Q134: 0
B135: 1 | I135: Drip | J135: 0 | K135: OK | O135: No change | Q135: 0
B136: 1 | I136: Drip | J136: 0 | K136: OK | O136: No change | Q136: 0
B137: 1 | I137: Drip | J137: 0 | K137: OK | O137: No change | Q137: 0
B138: 1 | I138: Drip | J138: 0 | K138: OK | O138: No change | Q138: 0
B139: 1 | I139: Drip | J139: 0 | K139: OK | O139: No change | Q139: 0
B140: 1 | I140: Drip | J140: 0 | K140: OK | O140: No change | Q140: 0
B141: 1 | I141: Drip | J141: 0 | K141: OK | O141: No change | Q141: 0
B142: 1 | I142: Drip | J142: 0 | K142: OK | O142: No change | Q142: 0
B143: 1 | I143: Drip | J143: 0 | K143: OK | O143: No change | Q143: 0
B144: 1 | I144: Drip | J144: 0 | K144: OK | O144: No change | Q144: 0
B145: 1 | I145: Drip | J145: 0 | K145: OK | O145: No change | Q145: 0
B146: 1 | I146: Drip | J146: 0 | K146: OK | O146: No change | Q146: 0
B147: 1 | I147: Drip | J147: 0 | K147: OK | O147: No change | Q147: 0
B148: 1 | I148: Drip | J148: 0 | K148: OK | O148: No change | Q148: 0
B149: 1 | I149: Drip | J149: 0 | K149: OK | O149: No change | Q149: 0
B150: 1 | I150: Drip | J150: 0 | K150: OK | O150: No change | Q150: 0
B151: 1 | I151: Drip | J151: 0 | K151: OK | O151: No change | Q151: 0
B152: 1 | I152: Drip | J152: 0 | K152: OK | O152: No change | Q152: 0
B153: 1 | I153: Drip | J153: 0 | K153: OK | O153: No change | Q153: 0
B154: 1 | I154: Drip | J154: 0 | K154: OK | O154: No change | Q154: 0
B155: 1 | I155: Drip | J155: 0 | K155: OK | O155: No change | Q155: 0
B156: 1 | I156: Drip | J156: 0 | K156: OK | O156: No change | Q156: 0
B157: 1 | I157: Drip | J157: 0 | K157: OK | O157: No change | Q157: 0
B158: 1 | I158: Drip | J158: 0 | K158: OK | O158: No change | Q158: 0
B159: 1 | I159: Drip | J159: 0 | K159: OK | O159: No change | Q159: 0
B160: 1 | I160: Drip | J160: 0 | K160: OK | O160: No change | Q160: 0
B161: 1 | I161: Drip | J161: 0 | K161: OK | O161: No change | Q161: 0
B162: 1 | I162: Drip | J162: 0 | K162: OK | O162: No change | Q162: 0
B163: 1 | I163: Drip | J163: 0 | K163: OK | O163: No change | Q163: 0
B164: 1 | I164: Drip | J164: 0 | K164: OK | O164: No change | Q164: 0
B165: 1 | I165: Drip | J165: 0 | K165: OK | O165: No change | Q165: 0
B166: 1 | I166: Drip | J166: 0 | K166: OK | O166: No change | Q166: 0
B167: 1 | I167: Drip | J167: 0 | K167: OK | O167: No change | Q167: 0
B168: 1 | I168: Drip | J168: 0 | K168: OK | O168: No change | Q168: 0
B169: 1 | I169: Drip | J169: 0 | K169: OK | O169: No change | Q169: 0
B170: 1 | I170: Drip | J170: 0 | K170: OK | O170: No change | Q170: 0
B171: 1 | I171: Drip | J171: 0 | K171: OK | O171: No change | Q171: 0
B172: 1 | I172: Drip | J172: 0 | K172: OK | O172: No change | Q172: 0
B173: 1 | I173: Drip | J173: 0 | K173: OK | O173: No change | Q173: 0
B174: 1 | I174: Drip | J174: 0 | K174: OK | O174: No change | Q174: 0
B175: 1 | I175: Drip | J175: 0 | K175: OK | O175: No change | Q175: 0
B176: 1 | I176: Drip | J176: 0 | K176: OK | O176: No change | Q176: 0
B177: 1 | I177: Drip | J177: 0 | K177: OK | O177: No change | Q177: 0
B178: 1 | I178: Drip | J178: 0 | K178: OK | O178: No change | Q178: 0
B179: 1 | I179: Drip | J179: 0 | K179: OK | O179: No change | Q179: 0
B180: 1 | I180: Drip | J180: 0 | K180: OK | O180: No change | Q180: 0
B181: 1 | I181: Drip | J181: 0 | K181: OK | O181: No change | Q181: 0
B182: 1 | I182: Drip | J182: 0 | K182: OK | O182: No change | Q182: 0
B183: 1 | I183: Drip | J183: 0 | K183: OK | O183: No change | Q183: 0
B184: 1 | I184: Drip | J184: 0 | K184: OK | O184: No change | Q184: 0
B185: 1 | I185: Drip | J185: 0 | K185: OK | O185: No change | Q185: 0
B186: 1 | I186: Drip | J186: 0 | K186: OK | O186: No change | Q186: 0
B187: 1 | I187: Drip | J187: 0 | K187: OK | O187: No change | Q187: 0
B188: 1 | I188: Drip | J188: 0 | K188: OK | O188: No change | Q188: 0
B189: 1 | I189: Drip | J189: 0 | K189: OK | O189: No change | Q189: 0
B190: 1 | I190: Drip | J190: 0 | K190: OK | O190: No change | Q190: 0
B191: 1 | I191: Drip | J191: 0 | K191: OK | O191: No change | Q191: 0
B192: 1 | I192: Drip | J192: 0 | K192: OK | O192: No change | Q192: 0
B193: 1 | I193: Drip | J193: 0 | K193: OK | O193: No change | Q193: 0
B194: 1 | I194: Drip | J194: 0 | K194: OK | O194: No change | Q194: 0
B195: 1 | I195: Drip | J195: 0 | K195: OK | O195: No change | Q195: 0
B196: 1 | I196: Drip | J196: 0 | K196: OK | O196: No change | Q196: 0
B197: 1 | I197: Drip | J197: 0 | K197: OK | O197: No change | Q197: 0
B198: 1 | I198: Drip | J198: 0 | K198: OK | O198: No change | Q198: 0
B199: 1 | I199: Drip | J199: 0 | K199: OK | O199: No change | Q199: 0
B200: 1 | I200: Drip | J200: 0 | K200: OK | O200: No change | Q200: 0
B201: 1 | I201: Drip | J201: 0 | K201: OK | O201: No change | Q201: 0
B202: 1 | I202: Drip | J202: 0 | K202: OK | O202: No change | Q202: 0
B203: 1 | I203: Drip | J203: 0 | K203: OK | O203: No change | Q203: 0
B204: 1 | I204: Drip | J204: 0 | K204: OK | O204: No change | Q204: 0
B205: 1 | I205: Drip | J205: 0 | K205: OK | O205: No change | Q205: 0
B206: 1 | I206: Drip | J206: 0 | K206: OK | O206: No change | Q206: 0
B207: 1 | I207: Drip | J207: 0 | K207: OK | O207: No change | Q207: 0
B208: 1 | I208: Drip | J208: 0 | K208: OK | O208: No change | Q208: 0
B209: 1 | I209: Drip | J209: 0 | K209: OK | O209: No change | Q209: 0
B210: 1 | I210: Drip | J210: 0 | K210: OK | O210: No change | Q210: 0
B211: 1 | I211: Drip | J211: 0 | K211: OK | O211: No change | Q211: 0
B212: 1 | I212: Drip | J212: 0 | K212: OK | O212: No change | Q212: 0
B213: 1 | I213: Drip | J213: 0 | K213: OK | O213: No change | Q213: 0
B214: 1 | I214: Drip | J214: 0 | K214: OK | O214: No change | Q214: 0
B215: 1 | I215: Drip | J215: 0 | K215: OK | O215: No change | Q215: 0
B216: 1 | I216: Drip | J216: 0 | K216: OK | O216: No change | Q216: 0
B217: 1 | I217: Drip | J217: 0 | K217: OK | O217: No change | Q217: 0
B218: 1 | I218: Drip | J218: 0 | K218: OK | O218: No change | Q218: 0
B219: 1 | I219: Drip | J219: 0 | K219: OK | O219: No change | Q219: 0
B220: 1 | I220: Drip | J220: 0 | K220: OK | O220: No change | Q220: 0
B221: 1 | I221: Drip | J221: 0 | K221: OK | O221: No change | Q221: 0
B222: 1 | I222: Drip | J222: 0 | K222: OK | O222: No change | Q222: 0
B223: 1 | I223: Drip | J223: 0 | K223: OK | O223: No change | Q223: 0
B224: 1 | I224: Drip | J224: 0 | K224: OK | O224: No change | Q224: 0
B225: 1 | I225: Drip | J225: 0 | K225: OK | O225: No change | Q225: 0
B226: 1 | I226: Drip | J226: 0 | K226: OK | O226: No change | Q226: 0
B227: 1 | I227: Drip | J227: 0 | K227: OK | O227: No change | Q227: 0
B228: 1 | I228: Drip | J228: 0 | K228: OK | O228: No change | Q228: 0
B229: 1 | I229: Drip | J229: 0 | K229: OK | O229: No change | Q229: 0
B230: 1 | I230: Drip | J230: 0 | K230: OK | O230: No change | Q230: 0
B231: 1 | I231: Drip | J231: 0 | K231: OK | O231: No change | Q231: 0
B232: 1 | I232: Drip | J232: 0 | K232: OK | O232: No change | Q232: 0
B233: 1 | I233: Drip | J233: 0 | K233: OK | O233: No change | Q233: 0
B234: 1 | I234: Drip | J234: 0 | K234: OK | O234: No change | Q234: 0
B235: 1 | I235: Drip | J235: 0 | K235: OK | O235: No change | Q235: 0
B236: 1 | I236: Drip | J236: 0 | K236: OK | O236: No change | Q236: 0
B237: 1 | I237: Drip | J237: 0 | K237: OK | O237: No change | Q237: 0
B238: 1 | I238: Drip | J238: 0 | K238: OK | O238: No change | Q238: 0
B239: 1 | I239: Drip | J239: 0 | K239: OK | O239: No change | Q239: 0
B240: 1 | I240: Drip | J240: 0 | K240: OK | O240: No change | Q240: 0
B241: 1 | I241: Drip | J241: 0 | K241: OK | O241: No change | Q241: 0
... 406 more rows

Sheet EMS (hidden)
B1: E N E R G Y M A N A G E M E N T S Y S T E M S ( E M S )
B2: Participant must obtain conditional approval from the Utilities prior to the purchase or installation of any energy efficiency measures to be eligible to receive efficiency incentives. The following are required for ALL measures: (1) Proposal to customer (2) ALL specification sheets and supporting documents. (3) Data fields (in yellow) on applicable tabs MUST BE FILLED IN (4) One year of historical electric and natural gas (if applicable) billing data
B3: (5) Description of Existing & Proposed System tabs must be filled in ---------- | G3: h
W12: SEASONAL
W13: Yes
W14: No
B15: Total Project Cost
B17: HEATING PLANT, COOLING PLANT, & AIR SIDE SYSTEM DATA REQUIRED Provide all heating and cooling plant equipment as well as air side equipment in the tables below. Identiy any equipment being replaced during the controls upgrade process. List existing and replacement equipment and associated control strategies separately (see examples on tables below)
B21: 1. HEATING PLANT EQUIPMENT & PUMPS
B22: Edits to the selected table row below are made in the yellow cells of this section.
A23: 1
B24: h | C24: =ROW(B35) -> 35
B25: Select any table row below to make edits to the entire row in yellow cells above.
B26: Equipment ID | C26: Capacity (MBH) | D26: Type | E26: Efficiency (%) | F26: New or existing | G26: Existing Control Strategy | H26: Plant Description
B27: ex. BOILER 1 | C27: 3000 | D27: Electric Boiler | E27: 0.78 | F27: Remaining | G27: None | H27: Back up
B28: ex. BOILER 2 | C28: 3000 | D28: Gas Fired Steam Boiler | E28: 0.95 | F28: New (didn't exist previously) | G28: Outside Temp Reset | H28: Primary
B44: HEATING PLANT PUMPS: Edits to the selected table row below are made in this section that follows.
B45: Select any table row below to make edits to the entire row in yellow cells above.
B46: Heating Pump ID | C46: Primary/ Secondary | D46: Backup | E46: hp | F46: Design Flow | G46: Design Head | H46: Existing Control Strategy
B47: ex. H-1 | C47: Primary | D47: No | E47: 5 | F47: 50 | G47: 5 | H47: none
B64: 2. COOLING PLANT EQUIPMENT AND PUMPS Edits to the selected table row below are made in the yellow cells of this section.
B65: Select any table row below to make edits to the entire row in yellow cells above.
B66: Equipment ID | C66: Capacity (Tons) | D66: Type | E66: Efficiency (kW/ton) | F66: New or Existing | G66: Existing Control Strategy | H66: Plant Description
B67: ex. Chiller 1 | C67: 600 | D67: Water cooled | E67: 10.1 | F67: Remaining | G67: none | H67: Primary
B83: CHILLED WATER PUMPS: Edits to the selected table row below are made in this section that follows.
B84: Select any table row below to make edits to the entire row in yellow cells above.
B85: ChW Pump ID | C85: Primary/ Secondary | D85: Backup | E85: hp | F85: Design Flow | G85: Design Head | H85: Existing Control Strategy
B86: ex. ChW-1 | C86: Primary | D86: No | E86: 10 | F86: 200 | G86: 11 | H86: pressure reset
B103: 3. AIR SIDE EQUIPMENT Edits to the selected table row below are made in the yellow cells of this section.
B104: Select any table row below to make edits to the entire row in yellow cells above. | G104: FANS | I104: Cooling | K104: Heating | M104: Existing Control Strategy
B105: Unit ID | C105: New or Existing | D105: Area Served (Specific) | E105: Total CFM | F105: OA CFM | G105: Supply HP | H105: Exhaust HP | I105: Cooling Type | J105: Capacity (Tons) | K105: Heating Type | L105: Capacity (MBH) | M105: Schedule | N105: Optimal SS | O105: Economizer | P105: VAV | Q105: Proposed Control Strategy
B106: ex. RTU - 1 | C106: Existing | D106: 1st fl executive offices | E106: 16000 | F106: 3000 | G106: 30 | H106: 15 | I106: DX | J106: 80 | K106: HW | L106: 50000 | M106: Yes | N106: No | O106: Yes | P106: Yes | Q106: Dual Enthapy controls

Sheet Custom (hidden)
B1: C U S T O M M E A S U R E S
A2: 19 | B2: h | F2: h
B3: (Outside the scope of typical efficiency measures.)
B4: Provide all relevant documentation: specs, proposal, etc.
B5: Participant must obtain conditional approval from the Utilities prior to the purchase or installation of any energy efficiency measures to be eligible to receive efficiency incentives. The following are required for ALL measures: (1) Proposal to customer (2) ALL specification sheets, calculations and supporting documents (ALL energy savings and annual energy usage calculations should be submitted in a format like Excel so underlying formulas can be displayed and followed.) (3) Data fields (in yellow) on applicable tabs MUST BE FILLED IN
B8: Total Project Cost
C10: Please elaborateas needed. Fields will auto expand.
B11: Equipment being evaluated
B12: Summarize project and how energy savings will be achieved
B13: Heating Source
B14: Cost of Proposed System
B15: Cost of Baseline System
B16: Incremental Cost | C16: =C14-C15 -> 0
B18: Proposed EE equipment/systems
B19: Description
B20: Qty to be installed
B21: Cost per Unit
B22: Operating Hours
B23: Estimated Annual Energy Use (ccf or kWh)
B24: Estimated Demand (Summer kW, Winter kW, annual & peak saving in CCF)
B26: Baseline System
B27: Description (code compliant if applicable, otherwise comparable equipment which is less efficient/more costly.)
B28: Qty to be installed
B29: Cost per Unit
B30: Operating Hours
B31: Estimated Annual Energy Use (ccf or kWh)
B32: Estimated Demand (Summer kW, Winter kW, annual & peak saving in CCF)
B33: Existing equipment serial number(s)
B38: Use this table to add any other relevant information about the project as it should be installed. Be specific in describing how the equipement and parameters impact the project design and energy outcomes. Column D and check boxes are intended to be used as utility's post inpection record (leave blank/unchecked until post inspection).
B39: EQUIPMENT: Provide a list of equipment or materials installed as part of this project. Include equipment counts, HP, kW, efficiency and capacity ratings, rating conditions, location of controls hardware, etc.
B40: Compliance | C40: Project Design Intent | D40: Post Inspection Findings
B41: 1
B42: 2
B43: 3
B44: SEQUENCES OF OPERATION: Provide a description of equipment operating sequences, setpoints, operating schedules, balancing requirements (flow, velocity, head, etc.) or any other required operating parameters. Describe requirements separately.
B45: 4
B46: 5
B47: 6
B48: 7
B49: 8
B50: DOCUMENTATION: List written documentation required to train, verify, operate, or maintain the equipment being installed or controlled. This may include specification sheets, test reports, construction drawings, etc.
B51: 9
B52: 10
B53: 11
B54: 12
B55: POST INSTALLATION VERIFICATION: Provide a list of controls and monitoring capabilities required to verify proper system operation. Trends should document operational sequences, set points and scheduling of equipment as described in TA Study.
B56: 13
B57: 14
B58: OTHER REQUIREMENTS: Describe any requirements for demolition, removal, etc. of existing equipment.
B59: 15
B60: 16
B63: Provide any additional information felt to be relevant here.

Sheet Refrig. Equip (hidden)
B1: R E F R I G E R A T I O N E Q U I P M E N T
B2: h | F2: h
B3: Measures covered:
B4: Evaporator Fan Motor Replacement
B5: Evaporator Fan Controls
B6: Doors
B7: Refrigerator LED Lighting and/or Controls
B8: Case Night Covers
B9: Vending Machine Controls
B12: Total Project Cost
B15: Evaporator Fan Motor Replacement (EC Motors)
B18: Edits to the selected row are made in this section.
B19: Select any cell to make edits.
B20: Case or Walk in Description | C20: Existing Controls? | D20: Refrig. Type | E20: Motor Type | F20: Motor Phase | G20: # of Fans | H20: Volts | I20: Amps per motor | J20: $ per Motor
B40: Evaporator Fan Controls
B41: Participant must obtain conditional approval from the Utilities prior to the purchase or installation of any energy efficiency measures to be eligible to receive efficiency incentives. The following are required for ALL measures: (1) Proposal to customer (2) ALL specification sheets and supporting documents. (3) Data fields (in yellow) on applicable tabs MUST BE FILLED IN
B43: Edits to the selected row are made in this section. | H43: Provide any additional information felt to be relevant here.
A44: 2
B46: Select any cell to make edits.
B47: Case or Walk in Description | C47: Control Type | D47: Motor Type * | E47: Motor Phase | F47: # of Fans | G47: # of Controllers | H47: Volts | I47: Amps per Motor | J47: $ per Controller
D64: *Note: If volt/amp readings were taken after fan motors were replaced, select "No Replacement" for Motor Type
B66: Door Heater Controls
B67: Edits to the selected row are made in this section.
B68: Select any cell to make edits.
B69: Case or Walk in Description | C69: Case Type | D69: Number of Doors | E69: # of Controllers | F69: Volts | G69: Amps per door | H69: $ per Controller
B87: Refrigerator LED Lighting and/or Controls
B88: Edits to the selected row are made in this section.
B89: Select any cell to make edits.
B90: Case #/ Location | C90: Case Type | D90: Number of Doors | E90: # of Controllers | F90: Lights per door | G90: Light wattage | H90: Cost
B109: Door addition to Existing Open Refrigeration Cases
B110: Edits to the selected table row below are made in this section.
B111: Select any cell to make edits.
B112: Case or Walk in Description | C112: Refrigeration Type | D112: Length of Doors (ft.) | E112: Door Heater?*** | F112: Gap?*** | G112: Cost/ft. | H112: Fuel Type
E130: **Doors either have:
F131: (a) gap between the doors
F132: (b) door heaters to the reduce condensation.
B134: Night Covers
B135: Edits to the selected table rows below are made in this section.
A136: 6
B137: h | C137: =ROW(B154) -> 154
B138: Select any cell to make edits.
B139: Case # or Description | C139: Case Temperature | D139: Total Width (ft.) | E139: Annual Hours | F139: Cost
B156: Vending Machine Controls
B157: Edits to the selected table row below are made in this section.
B158: Select any cell to make edits.
B159: Vending Machine Qty. | C159: Equipment Type | D159: Volts - Amps Known | E159: Voltage | F159: Amps | G159: Timer or Occupancy Sensor | H159: Hours After | I159: $ per Controller
H176: (only include if Timer-based system)
C181: Note:-

Sheet Refrigerator Door (hidden)
A1: Participant must obtain conditional approval from the Utilities prior to the purchase or installation of any energy efficiency measures to be eligible to receive efficiency incentives. The following are required for ALL measures: (1) Proposal to customer (2) ALL specification sheets and supporting documents. (3) Data fields (in yellow) on applicable tabs MUST BE FILLED IN
B6: Case Door Retrofit to Open Refrigeration Cases (EO only) | G6: Heating Fuel: | N6: Units | O6: Annual | P6: Peak day
M7: 1- Natural Gas | N7: ccf | O7: 1 | P7: 1
B8: Total Project Cost | M8: 2-Propane | N8: Gallons (Propane) | O8: =102900/91330 -> 1.1267 | P8: 0
M9: 3-Oil | N9: Gallons (Oil) | O9: =102900/138690 -> 0.7419 | P9: 0
B10: Case description (coolers) | C10: Case Length (ft) | D10: Door Type: Gap or Heaters *
A11: 1
A12: 2 | M12: cooler
A13: 3 | M13: 1-gap
A14: 4 | M14: 2-door heater
A15: 5 | M15: 3-No gap or door heater
A16: 6
A17: 7
A18: 8 | M18: freezer
A19: 9 | M19: 1-gap
A20: 10 | M20: 2-door heater
M21: 3-No gap or door heater
B22: Case description (freezers) | C22: Case Length (ft) | D22: Door Type: Gap or Heaters *
A23: 6
A24: 7
A25: 8
A26: 9
A27: 10
A28: 11
A29: 12
A30: 13
A31: 14
A32: 15
B35: * New doors will either have a gap between the doors or door heaters to the reduce condensation. Identify the proposed.
B36: ** For these retrofit projects it is likely that they will have gaps, so verify anything else
B42: Note:-

Sheet Commercial Kitchen Equipment (hidden)
B1: Measure Name: Commercial Kitchen Equipment
B2: Installation of ENERGY STAR qualified commercial kitchen equipment
B4: Participant must obtain conditional approval from the Utilities prior to the purchase or installation of any energy efficiency measures to be eligible to receive efficiency incentives. The following are required for ALL measures: (1) Proposal to customer (2) ALL specification sheets and supporting documents. (3) Data fields (in yellow) on applicable tabs MUST BE FILLED IN
B7: The choices in "Equipment Type" and "Measure Description /Equipment Type" will change dependent on the type of fuel selected (Electric / Gas).
U8: Gas_Equipment
B9: Total Project Cost | U9: Electric_Equipment
B11: Manufacturer | C11: Model Number | D11: Fuel Serving Equipment (Electric or Gas) | E11: Equipment Type | F11: Measure Description/Equipment Type | G11: Quantity | H11: Building Type | I11: Est. Install Cost
B12: Ex 111 | C12: Example | D12: Electric_Equipment | E12: Electric_Other | F12: Induction Cooktop | G12: 2 | H12: Restaurant | I12: 1000
H13: Restaurant
H14: Restaurant
H15: Restaurant
H16: Restaurant
H17: Restaurant
H18: Restaurant
H19: Restaurant
H20: Restaurant
H21: Restaurant
H22: Restaurant
H23: Restaurant
H24: Restaurant
H25: Restaurant
H26: Restaurant
G29: Total | I29: =SUM(I12:I26) -> 1000
A200: Level 1 | B200: Level 2 | C200: Level 2 | D200: Level 3 | E200: Level 3 | F200: Level 3 | G200: Level 3 | H200: Level 3 | I200: Level 3 | J200: Level 3 | K200: Level 3 | L200: Level 3 | M200: Level 3 | N200: Level 3 | O200: Level 3 | P200: Level 3 | Q200: Level 3
A201: Fuel_Type | B201: Electric_Equipment | C201: Gas_Equipment | D201: Broiler | E201: Electric Dishwasher | F201: Freezer | G201: Electric Fryer | H201: Griddle | I201: Hot Folding Cabinet | J201: Ice Machine | K201: Electric Other | L201: Electric Oven | M201: Refrigerator | N201: Gas Dishwasher | O201: Gas Fryer | P201: Gas Other | Q201: Gas Oven
A202: Gas_Equipment | B202: Broiler | C202: Gas_Dishwasher | D202: Energy-efficient commercial underfired broiler | E202: Electric dishwasher high temp – door type | F202: Freezer, glass door, self-contained (< 15 cubic ft) | G202: Electric fryer - standard vat | H202: Electric griddle – up to 36” | I202: Electric hot food holding cabinets – full size | J202: Electric ice machine, remote cond./split unit, continuous 1,750 lb/day | K202: Induction Cooktop | L202: Electric combination oven | M202: Refrigerator, solid door, self-contained (< 15 cubic ft) | N202: Gas dishwasher high temp – door type | O202: Gas fryer - standard vat | P202: Gas griddle with 3 ft countertop width | Q202: Gas combination oven
A203: Electric_Equipment | B203: Electric_Dishwasher | C203: Gas_Fryer | D203: Energy-efficient commercial conveyor broilers, < 20" wide | E203: Electric dishwasher high temp – multi-tank conveyor | F203: Freezer, glass door, self-contained (15-29.9 cubic ft) | G203: Electric fryer - large vat | H203: Electric griddle – over 36” | I203: Electric hot food holding cabinets – ¾ size | J203: Electric ice machine, self-contained 200 lb/day | K203: Electric steam cooker | L203: Electric convection oven (full size) | M203: Refrigerator, solid door, self-contained (15-29.9 cubic ft) | N203: Gas dishwasher high temp – multi-tank conveyor | O203: Gas fryer – large vat | P203: Gas pre-rinse spray valve | Q203: Gas convection oven
B204: Freezer | C204: Gas_Other | D204: Energy-efficient commercial conveyor broilers, 20-26" wide | E204: Electric dishwasher high temp – pot, pan, utensil | F204: Freezer, glass door, self-contained (30-49.9 cubic ft) | I204: Electric hot food holding cabinets – half size | J204: Electric ice making, head 0-500 lb/day | K204: On-demand commercial electric hand wrap machine | L204: Electric convection oven (half size) | M204: Refrigerator, solid door, self-contained (30-49.9 cubic ft) | N204: Gas dishwasher high temp – pot, pan, utensil | P204: Gas steamer | Q204: Gas conveyor oven
B205: Electric_Fryer | C205: Gas_Oven | D205: Energy-efficient commercial conveyor broilers, > 26" wide | E205: Electric dishwasher high temp – single tank conveyor | F205: Freezer, glass door, self-contained (50+ cubic ft) | J205: Electric ice machine, remote cond./split unit, batch 1,250 lb/day | L205: Commercial electric deck ovens | M205: Refrigerator, solid door, self-contained (50+ cubic ft) | N205: Gas dishwasher high temp – single-tank conveyor | Q205: Gas rack oven
B206: Griddle | E206: Electric dishwasher high temp – under counter | F206: Freezer, solid door, self-contained (< 15 cubic ft) | M206: Refrigerator, glass door, self-contained (< 15 cubic ft) | N206: Gas dishwasher high temp – under counter
B207: Hot_Folding_Cabinet | E207: Electric dishwasher low temp – door type | F207: Freezer, solid door, self-contained (15-29.9 cubic ft) | M207: Refrigerator, glass door, self-contained (15-29.9 cubic ft) | N207: Gas dishwasher low temp – door type
B208: Ice_Machine | E208: Electric dishwasher low temp – multi-tank conveyor | F208: Freezer, solid door, self-contained (30-49.9 cubic ft) | M208: Refrigerator, glass door, self-contained (30-49.9 cubic ft) | N208: Gas dishwasher low temp – multi-tank conveyor
B209: Electric_Other | E209: Electric dishwasher low temp – single-tank conveyor | F209: Freezer, solid door, self-contained (50+ cubic ft) | M209: Refrigerator, glass door, self-contained (50+ cubic ft) | N209: Gas dishwasher low temp – single-tank conveyor
B210: Electric_Oven | E210: Electric dishwasher low temp – under counter | F210: Ultra-low temp freezers | M210: Refrigerated chef bases, 35-54” | N210: Gas dishwasher low temp – under Counter
B211: Refrigerator | M211: Refrigerated chef bases, 55-73”
M212: Refrigerated chef bases, 74-89”
M213: Refrigerated chef bases, 90-120”

Sheet Kitchen Hoods (hidden)
B1: K I T C H E N H O O D V F D S
B2: Participant must obtain conditional approval from the Utilities prior to the purchase or installation of any energy efficiency measures to be eligible to receive efficiency incentives. The following are required for ALL measures: (1) Proposal to customer (2) ALL specification sheets and supporting documents. (3) Data fields (in yellow) on applicable tabs MUST BE FILLED IN
B4: Note:- Oil and Propane Incentives are available
B5: Type of Heating
A6: =ROW(B16) -> 16 | B6: Total Project Cost | F6: h
B8: Edits to the selected row are made in this section.
B9: Select any table row below and make associated edits.
B10: Kitchen Hoods Proposed
B11: Unit Description | C11: HP | D11: Load Factor | E11: Motor Efficiency | F11: CFM | G11: Cooling System EER | H11: Heating System Efficiency | I11: Heating Setpoint (⁰F) | J11: Cooling Setpoint (⁰F) | K11: Total Installed Cost to Add VFD control
B12: Hood #1 (EXAMPLE) | C12: 1 | D12: 0.8 | E12: 0.85 | F12: 2200 | G12: 12 | H12: 0.8 | I12: 70 | J12: 75 | K12: 2350
B31: Provide any additional information felt to be relevant in the space below. (different occupied hours for different hoods, etc.)

Sheet Insulation (hidden)
B1: B U I L D I N G E N V E L O P E I N S U L A T I O N
B2: Participant must obtain conditional approval from the Utilities prior to the purchase or installation of any energy efficiency measures to be eligible to receive efficiency incentives. The following are required for ALL measures: (1) Proposal to customer (2) ALL specification sheets and supporting documents. (3) Data fields (in yellow) on applicable tabs MUST BE FILLED IN
C4: Heating Temp Setpoint | D4: Percent of building cooled
C5: Cooling Temp Setpoint | D5: Cooling EER
C6: Setback Degrees | D6: Heating System Efficiency (Default = 80%) Use average COP for electric | H6: Incremental Cost
C7: Heating Fuel Type | D7: Perimeter Zones Balance Point (OA Temp °F) | H7: Total Project Cost
B9: Area A (description) | D9: Area B (description)
I10: Program Baseline (IECC 2021)
C11: Assembly Type | E11: Assembly Type | I11: Opaque Elements | J11: Assembly Maximum | K11: Insulation Min R-Value
C12: Total SF area A | E12: Total SF area B | I12: Roofs
I13: Insulation Entirely Above Deck | J13: U-0.032 | K13: R-30.0 c.i.
I14: Metal Building | J14: U-0.035 | K14: R-19.0
C15: Proposed U-Value | E15: Proposed U-Value | I15: Attic and Other | J15: U-0.027 | K15: R-38.0
B16: Area C (description) | D16: Area D (Description) | I16: Walls, Above-Grade
I17: Mass | J17: U-0.090 | K17: R-11.4 c.i.
C18: Assembly Type | E18: Assembly Type | I18: Metal Building | J18: U-0.052 | K18: R-13.0
C19: Total SF area C | E19: Total SF area D | I19: Steel-Framed | J19: U-0.064 | K19: R-13.0 + R-7.5 c.i.
I20: Wood-Framed and Other | J20: U-0.064 | K20: R-13.0 + R-3.8 c.i. or R-20
I21: Walls, Below-Grade
C22: Proposed U-Value | E22: Proposed U-Value | I22: Walls, Below-Grade | J22: C-0.119 | K22: R-7.5 c.i.

Sheet Windows (hidden)
B1: W I N D O W S
B2: Participant must obtain conditional approval from the Utilities prior to the purchase or installation of any energy efficiency measures to be eligible to receive efficiency incentives. The following are required for ALL measures: (1) Proposal to customer (a) Code Compliant window installation & (b) High Efficiency windows installation. (2) ALL specification sheets and supporting documents. (3) Data fields (in yellow) on applicable tabs MUST BE FILLED IN
A4: 19
B5: Project Type:
C6: Heating Temp Setpoint (°F)
C7: Cooling Temp Setpoint (°F)
C8: Setback Degrees (°F) | D8: Incremental Cost | H8: Qty of windows (A) | AA8: SHGC: Table C402.4 IECC 2021
C9: Heating Fuel Type | D9: Total Project Cost | H9: Qty of windows (B) | AA9: Orientation | AB9: Fixed | AC9: Operable | AD9: Entrance Doors
C10: Heating System Eff. (Default = 80%) use avg. COP for electric | H10: Qty of windows (C) | AA10: PF < 0.2 | AB10: 0.38 | AC10: 0.33 | AD10: 0.33
D11: Cooling EER: | H11: Qty of windows (D) | AA11: 0.2 <= PF < 0.5 | AB11: 0.46 | AC11: 0.4 | AD11: 0.4
C12: Perimeter Zones Balance Point (OA Temp °F) | D12: % building cooled: | AA12: PF >= 0.5 | AB12: 0.61 | AC12: 0.53 | AD12: 0.53
B13: Side A | D13: Side B
C14: Window Orientation | E14: Window Orientation
C15: Projection Factor | E15: Projection Factor
C16: Fixed, Operable, or Entrance Door | E16: Fixed, Operable, or Entrance Door
C19: Total Window Area (ft²) | E19: Total Window Area (ft²)
C21: U-Value Proposed Window (BTU/h·ft²·°F) | E21: U-Value Proposed Window (BTU/h·ft²·°F)
C22: SHGC Proposed Window | E22: SHGC Proposed Window
B23: Side C | D23: Side D
C24: Window Orientation | E24: Window Orientation
C25: Projection Factor | E25: Projection Factor
C26: Fixed, Operable, or Entrance Door | E26: Fixed, Operable, or Entrance Door
C29: Total Window Area (ft²) | E29: Total Window Area (ft²)
C31: U-Value Proposed Window (BTU/h·ft²·°F) | E31: U-Value Proposed Window (BTU/h·ft²·°F)
C32: SHGC Proposed Window | E32: SHGC Proposed Window
B38: Provide any additional information felt to be relevant here.

Sheet Air Compressor & Dryer (hidden)
B1: A I R C O M P R E S S O R & D R Y E R
A2: 19 | B2: h | F2: h
B3: CAGI data sheets must be submitted along with the cost proposal for both Base and Premium Efficient models.
B4: Participant must obtain conditional approval from the Utilities prior to the purchase or installation of any energy efficiency measures to be eligible to receive efficiency incentives. The following are required for ALL measures: (1) Proposal to customer (2) ALL specification sheets and supporting documents including CAGI data sheet (example below). (3) Data fields (in yellow) on applicable tabs MUST BE FILLED IN
B7: Compressed Air Load Profile: | J7: Air Compressors Incentives
B8: (2 loads min.) | C8: Flow (cfm) | D8: Run Time (hrs) | E8: Description | J8: Incremental Cost | K8: 0.75
B9: Load 1 | J9: Measure Cap (greater of) | K9: $0.40/kWh or $1,000.00/summer peak kW
B10: Load 2 | J10: Prescriptive:
B11: Load 3 | J11: < 5 hp | K11: 0
B12: Load 4 | J12: ≥ 5 hp < 40 hp | K12: $310.00 / hp
J13: ≥ 40hp < 50 hp | K13: $240.00 / hp
B14: Total Project Cost | J14: ≥ 50hp ≤ 100 hp | K14: $205.00 / hp
B15: Air Compressor (yellow data fields are required) | H15: Yes | I15: Cycling | J15: > 100 hp | K15: Custom – Contact applicable utility-Eversource or UI for details
H16: No | I16: Noncycling
B17: Base Model
B18: Manufacturer
B19: Model Number | H19: Single | I19: Water Cooled
B20: Cost Each | H20: Two | I20: Air Cooled
B21: Air Cooled
B22: Water Cooled
B23: Oil Injected | I23: Oil Injected
B24: Oil Free | I24: Oil Free
B25: Compressor Type
B26: # of Stages
B27: Number of Compressors
B28: Rated Capacity @ Full Load Operating Pressure acfm
B29: Full Load Operating Pressure psig
B30: Drive Motor Nominal Rating hp
B31: Drive Motor Nominal Efficiency %
B32: Fan Motor Nominal Rating hp
B33: Fan Motor Nominal Efficiency %
B34: Total Package Input Power @ Rated Capacity & Full Load Pressure kW
B36: Premium Energy Efficient Model (VFD control, other)
B37: Manufacturer
B38: Model Number
B39: Cost Each
B40: Air Cooled
B41: Water Cooled
B42: Oil Injected
B43: Oil Free
B44: Compressor Type
B45: # of Stages
B46: Number of Compressors
B47: Rated Operating Pressure psig
B48: Drive Motor Nominal Rating hp
B49: Drive Motor Nominal Efficiency %
B50: Fan Motor Nominal Rating hp
B51: Fan Motor Efficiency %
B52: Total installed cost of Compressor(s):
B53: Input Power profile (kW): | C53: xx (kW) | D53: @ yy (cfm)
B54: (2 loads min.) Max.
B60: Min.
B61: Total Package Input Power @ Zero Flow kW | D61: `
B64: Refrigerated Air Dryer:
B66: Base Model
B67: Manufacturer
B68: Model Number
B69: Cost Each
B70: Air Cooled
B71: Water Cooled
B72: Cycling/Non Cycling
B73: Refrigerant
B74: Refrigerant
B75: Tested Flow scfm
B76: # of Air Dryers:
B77: Outlet Pressure Dewpoint °F
B78: Pressure Drop psi
B79: Total Dryer Input Power kW
B81: Premium Energy Efficient Model
B82: Manufacturer
B83: Model Number
B84: Total installed cost of Dryer(s)
B85: Cost Each
B86: Air Cooled
B87: Water Cooled
B88: Cycling/Non Cycling
B89: Refrigerant
B90: Tested Flow scfm
B91: Number of Air Dryers:
B92: Outlet Pressure Dewpoint °F
B93: Pressure Drop psi
B94: Total Dryer Input Power kW
B95: Total installed cost of Dryer(s):
B98: Note:-

Sheet Air Compressor Heat Recovery (hidden)
B1: A I R C O M P R E S S O R H E A T R E C O V E R Y ( A I R - C O O L E D C O M P R E S S O R S O N L Y )
A2: 19 | B2: h | F2: h
B3: Air-cooled compressors only
B4: Participant must obtain conditional approval from the Utilities prior to the purchase or installation of any energy efficiency measures to be eligible to receive efficiency incentives. The following are required for ALL measures: (1) Proposal to customer (2) ALL specification sheets and supporting documents. (3) Data fields (in yellow) on applicable tabs MUST BE FILLED IN
B6: For conditions where the air compressor takes in outside/indoor air to cool itself. This is not for water cooled compressors. This measure can effect heating or cooling of a building space but not both. See notes below. The occupied building space must be served by Electric air conditioning equipment or Fossil Fuel heating equipment and the customer must be on a firm rate. The sheet calculations are based on bin data analysis and the thermostat setpoint at which the system will automatically switch over to begin to recover heat. System must have automated control with motorized dampers, thermostatic control and correct control logic for safe compressor operation.
B13: How would you best describe the location of the compressor?
B16: If "Other" location was selected, please describe:
K17: Heating Fule Type
K19: Electric
B20: If the air compressor is located in an occupied building space (not a separate back room) that is air | K20: Natural Gas
B21: conditioned and draws and exhausts its cooling air from this occupied space then indicate | K21: Oil
B23: Select "No" for 'Is Space Cooled?' if the air compressor draws its cooling air from the outside or a separate mechanical room and does not currently exhaust this air into heated occupied building space.
B25: Select "Yes" for 'Is Space Cooled?' if the air compressor is located in an occupied building space (not a separate back room) that is air conditioned and draws/exhausts its cooling air from this occupied space.
K27: Propane
C28: Is space cooled? | K28: Others
C29: TOTAL INSTALLED COSTS
B31: Compressor Data | H31: HVAC Data (for area where heating/cooling will be supplied) | K31: Existing
C32: Existing or New Compressor | I32: OA temperature setpoint for heating (winter operation, typically 45-50°F) | K32: New
C33: Compressor Rating (hp) | I33: Heating Fuel
C34: Compressor Qty. | I34: Heating Equipment Type
C35: Rated Capacity at Full Load Operating Pressure (cfm for each comp.) - CAGI | I35: Heating Capacity (Btu/h) | K35: compressor location
C36: % useful compressor heat recovered (assume 80% due to skin/ducting losses) | I36: Heating Efficiency
C37: Quantity of Thermostats | I37: Cooling Equipment Type
C38: Heating Thermostat Setpoint (°F) | I38: Cooling Capacity (Btu/h)
C39: Compressor Heat Recovery Setpoint | I39: Cooling EER
B41: Facility Loads | H41: Describe the Location of Thermostats (below):
B42: Loads | C42: CFM | D42: HRS
B44: 1
B45: 2
B46: 3
B47: 4 | H47: Describe the Location where ductwork will vent from the compressor (below):
B50: TOTAL ENERGY SAVINGS | D50: CCF % Savings (adjust based on bill bill data)
D51: kWh % Savings (adjust based on bill bill data)
B54: Note: Discussions with the customer in regards to the space where heat will be recovered to are required. If space is positively pressured, it is highly recommended to take air from interior space for heat recovery during heating season. If space is negatively pressured, intake air from either the interior space or outside will help with infiltration losses.
K56: In conditioned space
K57: In room with venting to the outside
K58: Other -describe below
B61: Program assumptions include 80% of compressor power generates waste heat. Of that 80%, only 80% of that will be effectively recovered to the space (skin losses of compressor and duct work). Space is assumed to have a heating system that is 80% efficient which is specified in the Program Savings Document.

Sheet PIMMS (hidden)
B1: P L A S T I C I N J E C T I O N M O L D I N G M A C H I N E S ( P I M M )
A2: 19 | B2: h | F2: h
D3: Participant must obtain conditional approval from the Utilities prior to the purchase or installation of any energy efficiency measures to be eligible to receive efficiency incentives. The following are required for ALL measures: (1) Proposal to customer (2) ALL specification sheets and supporting documents. (3) Data fields (in yellow) on applicable tabs MUST BE FILLED IN
B4: Notes: | C4: 1. Baseline for IMM producing medical and electronic parts shall be an all-electric machine. All electric machines will therefore not qualify for incentives.
C5: 2. Baseline for IMM less than 200 tons clamping force is an all-electric machine. As such, no incentives will be available for these applications.
C6: 3. Baseline for IMM packaging and high speed molders shall be a hydraulic/hybrid machine with a servo motor driven hydraulic pumping.
C7: 4. Baseline for all other IMM shall:
C8: a. have variable volume hydraulic pumping
C9: b. have a minimum clamping force large enough for the expected molds
C10: c. be able to produce parts at the speed required by the site for the part
C11: d. be able to meet the required specifications (materials, tolerances) for the expected parts
C12: e. be a machine the manufacturer still currently manufactures (i.e., not a custom-built machine)
C13: 5. Annual operating hours would normally be the same for hybrid-hydraulic & the electric.
C14: 6. The "Peak Molding Cycle kW' is the measured kW for the Lock Up/Injection portion of the molding cycle.
C15: 7. Full proposals for both units must be provided in submittal
E17: All Electric vs. Hybrid-Hydraulic/electric
D18: Total Project Cost
C20: INJECTION MOLDING MACHINE INFORMATION
E21: Hybrid-Hydraulic/Electric | F21: ALL ELECTRIC
D22: Manufacturer
D23: Model Number
D24: Nominal Tons
D25: Machine Cost
D26: Annual Operating Hours
D27: Machine Scrap Rate (%)
D28: Peak Molding Cycle kW
D29: Hydraulic Oil Cooling Method
C30: CYCLE TIMES (sec.):
D31: Mold Open
D32: Ejection
D33: Mold Close
D34: Lock Up / Injection
D35: Recovery and Charge
D36: Mold Cooling
D37: Total Cycle Time | E37: =SUM(E31:E36) -> 0 | F37: =SUM(F31:F36) -> 0
D43: Provide any additional information felt to be relevant here.

Sheet Compressed Air Leak Survey (hidden)
A1: C O M P R E S S E D A I R L E A K S U R V E Y
A3: Air Leak Study Deliverables
A5: Level 1 - Air Leak Audit
A7: An Air Leak Audit is an overview of the entire plant compressed air system identifying areas where compressed air is inappropriately being released and where the distribution system and/or end use equipment needs repair. Use Compressed Air Challenge best practices
A10: https://compressedairchallenge.org/
A12: An audit of the compressed air system with approved tools utilizing industry standard practices is conducted.
A14: A submittal and/or spreadsheet is required documenting the specific areas of the air leaks. All air leaks must be tagged in the field. Pictures of the tagged air leaks are required unless not allowed due to sensitive equipment.
A17: The submittal should summarize the tools and approach utilized to find and determine the losses of the air leaks.
A19: Indication of the compressed air system should be included and should list all air compressors, make and model numbers, size and capacity, and operating pressure. The report should estimate a typical load profile and identify which units typically operate to satisfy loads and which are backups. If available, CAGI data sheets showing power consumption of installed units per cfm produced should be supplied. Otherwise, available estimates must be supplied.
A24: Each leak must list the pressure at the area, dB of the leak and calculated loss in cfm. Estimated kWh in energy savings would be helpful. Spreadsheets that show assumptions and calculations must be provided.
A27: The submittal must include the estimated cost for repairing the identified air leaks.
A30: Date of Leak Survey
A31: Leak Detector Tool Mfg & model
A32: Compressors simultaneously operating | C32: Number (not including back ups or add'l lead/ lag units
A33: Total Hours Air Compressor Runs per yr | C33: (not plant operating hours)
A34: CAGI Sheets Submitted (Yes or No)
A35: Leak Detection Survey Comments on approach and conditions. (Submit savings calculations with industry standard calculator separately)
A36: Estimated Cost of Repairs
A38: Number of shifts
A39: Air Compressor Type
A40: Compresor control type
A42: Air Compressor Survey Information
A43: Air Compressor System in typical priority of running | B43: Manufacturer | C43: Model # | D43: Compressor type | E43: Nominal HP | F43: Max Pressure | G43: Capacity CFM at Max | H43: System Pressure psig | I43: Compressor Control
A50: Load Profile
A51: (2 loads min.) | B51: Flow (cfm) | C51: Run Time (hrs) | D51: Description
A52: Load 1
A53: Load 2
A54: Load 3
A55: Load 4
A57: Attach pictures of tagged compressed air leak locations
A59: Survey results example (submit separately with standard tool spreadsheet)
A60: Leak # | B60: Area Name | C60: Specific Location | D60: Problem Description | E60: Pressure at Leak | F60: dB Reading | G60: Repaired (Y or N)
A61: 1 - example | B61: maintenance garage | C61: west wall | D61: 1/2 union leaking | E61: 100 | F61: 20
A62: 2 - example | B62: maintenance garage | C62: east wall | D62: quick connect | E62: 80 | F62: 32
A63: 3 - example | B63: Prod area 1 | C63: machine 4 | D63: air hose gun leaking | E63: 100 | F63: 15
A64: 4 - example | B64: Prod area 1 | C64: machine 9 | D64: 1/2 inch line filter assembly leaking | E64: 80 | F64: 50
A65: 5 - example | B65: Prod area 2 | C65: machine 17 | D65: regulator leaking | E65: 100 | F65: 55

Sheet Washers (hidden)
A2: Participant must obtain conditional approval from the Utilities prior to the purchase or installation of any energy efficiency measures to be eligible to receive efficiency incentives. The following are required for ALL measures: (1) Proposal to customer (2) ALL specification sheets and supporting documents. (3) Data fields (in yellow) on applicable tabs MUST BE FILLED IN
C6: Clothes Washers | V6: Drop-down Inputs
V7: Top Load Washer
V8: Front Load Washer
V9: Top Load Dryer
B10: Facility Type: | N10: Front Load Washer | V10: Front Load Dryer
B11: Washer Load Type | N11: Top Load Washer | O11: dryer code
B12: Dryer Type | N12: No Dryer | O12: =IF(N12=$C$12,0,1) -> 1
B13: Dryer Load Type | D13: If all not the same, pick based on the largest number or most used. | N13: Electric Dryer | O13: =IF(N13=$C$12,1,0) -> 0
B14: DHW type | N14: Gas Dryer | O14: =IF(N14=$C$12,1,0) -> 0
B15: Estimated Install Cost | N15: Front Load Dryer
B16: Inputs | N16: Top Load Dryer
B17: Symbol | C17: Description | D17: Units | E17: Electric Washer
B18: Top Load Washer/Dryer | D18: -- | E18: =+C11 -> 0 | N18: Electric DHW | O18: Gas DHW | P18: Propane DHW | Q18: Oil DHW
B19: N | C19: # units | D19: #
B20: MEFi | C20: Modified Energy Factor, installed | D20: ft3/kWh/cycle
B21: LDS | C21: avg # load/wk | D21: Loads/wk
B22: WK | C22: avg # weeks/yr | D22: wk/yr
B23: WkWhes | C23: washer kWh/load Estar | D23: kWh/load | E23: 0.085
B24: WBTUb | C24: washer BTU/load Estar | D24: BTU/load | E24: --
C31: Note:-

Sheet Lighting Instructions (hidden)
B3: Lighting Data Form Instructions
B6: Administrative requirements: | C6: 1. Projects that qualify for the "Standard" tier should be submitted through the expedited lighting portal. Project submitted through the expedited lighting portal do not need spec sheets or DLC screen shots.
C7: 2. Projects that qualify for higher tiers than "Standard" are encouraged to to gothrough the expedited lighting portal, but not required.
C8: 3. Enter savings data into Tracksys prior to sumitting the project to Engineering.
C9: 4. When performing preliminary review of project, please ensure that all LED Requirements, Project Data and Fixture Data requirements are met (see below).
B11: LED requirements: | C11: 1. Include copy of LED spec sheet. (Not required for with the expedited lighting portal)
C12: 2. Include copy of Design Lights Consortium (DLC) approval or Energy Star approval. This can be a website screen shot. (Not required with the expedited lighting portal)
C13: 3. Include the DLC Product ID in Column L, this will help prevent mis-identification and improve approval time.
C14: 4. LEDs must be approved by DLC, Energy Star, or EE engineering prior to submitting the project for engineering review.
C15: 5. The descriptions of LEDs in this spreadsheet must match the model number, manufacturer, and product code listed on the included spec sheet and DLC/Energy Star approval.
C16: 6. For High Performance Lighting projects, please add a new tab in the beginning of this workbook and paste in the required control narrative that should come from either the customer or contractor.
B18: Tab Name | C18: Instructions
B19: Project Data | C19: Fill in all of the red background cells with the requested information.
C20: Fill in the yellow background cells as applicable.
B22: Fixture Data | C22: Column A "Area Description" | D22: Enter a description of the area where the lights are located, be specific and avoid repeated descriptions.
C23: Column B "Unit Quantity Before" | D23: Enter the quantity of fixtures for this area.
C24: Column C "Description Before" | D24: Enter a description of the existing lights. Note the lamp type, lamp wattage, quantity of lamps in the fixture, and ballast type if applicable. For existing LEDs being replaced: List the LED manufacturer and model number. Use the "Existing Wattage Table" tab for the correct configuration and wattage.
D25: Examples: | E25: 13W COMPACT HW
E26: 1L4’ 25W T8EE/ELEE HIGH PWR
E27: 4L4’ 54W T5HO/ELIG
E28: 60W INC
E29: 150W HPS
E30: Acme LED Co. - 24ABC Troffer
C31: Column D "Watts/ Unit Before" | D31: Enter wattage for existing fixture, include ballast if applicable. Use the "Existing Wattage Table" tab for the correct configuration and wattage.
C32: Column E "Annual Hours Before" | D32: Enter annual usage hours for existing fixture. If the area has existing occupancy sensors, reduce hours to reflect the current "on" time. If over 6,000 hours, provide written verification to corroborate.
C33: Column G "Item Type" | D33: New Fixtures - New fixtures being installed (includes retrofit kits). Retrofit downlights only qualify if the existing fixture is pin based CFL and proposed fixture is hard wired, ballast and socket have been removed (see picture to right), and listed as a downlight on Energy Star. Must confirm connector on spec sheet. Energy Star fixtures not categorized as downlights will only be eligible until Dec. 31 2024. New Fixtures w/ LLLC or NLC – New fixture (or retrofit kit) which includes Luminaire-Level Lighting Control (LLLC) capability or is controlled by Network Lighting Controls (NLC) system listed on the DLC NLC Qualified Product List. LLLC must be listed with DLC and on spec sheet. MUST BE NETWORKED AND COMMISSIONED. Default LLLC Fixtures - New fixture (or retrofit kit) which includes LLLC capability or is controlled by an NLC. The system will not be networked and commissioned. TLED Type A & B (Non-Eligible)– Not eligible for incentives through EO, customer must go through Upstream or Express Rebate program. Type A&B TLEDs may be allowed in the spreadsheet for accountability purposes (will not count energy savings or cost). Lamp Replacement - Includes mogul base lamps, pin-based lamps and TLED Type C linear replacement Lamp which requires rewiring of the existing fixture to replace the ballast with a new external driver. Controls Only - New occupancy sensor or daylight harvesting controls added to existing fixtures or lamps. Misc. Costs - Extraordinary installation costs with itemized costing for items not directly associated with labor or materials for the part of the project.
D34: Non-Eligible – Product that does not meet program criteria such as DLC or Energy Star requirements, as well as downlights that do not meet the criteria above and any other products on the following Energy Star lists: Lamps and Luminaires, Ceiling Fan Light, Kits Ceiling and Vent fans with Lighting. New fixtures that are replacing general service lamps are also not eligible. Refrigerator – Product installed in a refrigerator case or walk-in. Freezer - Product installed in a freezer case or walk-in. Fixture Removal - Removal of unnecessary fixtures *NOTE SCREW-IN LED REMOVED FROM LIST FOR 2024- Per new federal mandate, these are no longer eligible for savings/incentive. See note on "non'eligible" fixutures.
C35: Column H "Lighting Group Type" | D35: Standard – LEDs only. Includes fixtures, retrofit kits, and Type C TLEDs. Enhanced Performance – Minimum of 1 control strategy per fixture and 2 strategies across entire project. System must be able to digitally & wirelessly initialize, configure, and commission the LED fixtures. High Performance – Requires use of DLC qualified Networked Lighting Control system with energy monitoring and load shedding (demand response) capabilities. Requires control narrative & requires 3 months of post-installation energy monitoring.
C36: Column I "Unit Quantity After" | D36: Enter the quantity of fixtures / lamps.
C37: Column J "Proposed Equipment - Manufacturer" | D37: Enter the manufacturer of the proposed lights.
C38: Column K "Proposed Equipment - Model Number" | D38: Enter the model number of the proposed lights, include the driver type if applicable. Make sure to include entire model number (including controls package) if applicable
C39: Column L "DLC Product ID" | D39: Enter the DLC Product ID for items on the DLC Qualified Product List, not applicable to Energy Star Certified LEDs. Enter "ES" if the product is on the Energy Star list. DLC Product ID: ABCDEFGH
C40: Column M "Watts/ Unit After | D40: Enter wattage for proposed fixture, include driver if applicable. Wattage should be taken directly from manufacturer's cut sheet, not DLC or Energy Star approval. For fixtures with selectable wattages, select wattage that will be used and should match option on spec sheet. Selection will be reviewed for reasonability
C41: Column N "Dimmable Fixture or Lamp (Y or N)" | D41: If the new fixtures have dimming capabilty - click Y If the new fixtures don't have dimming capabilty - click N (Can be verified through DLC ID or spec sheet)
C42: Column O "NEW" Occupancy Sensor Controlled? (Y or N)" | D42: If fixtures don't have existing occupancy sensors and they are to be added - select Y If fixtures have existing occupancy sensors, but they are going to be removed and new sensors installed - select Y-Existing. If fixtures have existing occupancy sensors and they are going to be re-used - select N If occupancy sensors are NOT going to be added to control this fixture group - select N If some of the fixtures in a group are to be controlled by new occupancy sensors and others are not, they must be split onto separate lines on the sheet.
C43: Column P "Occupancy Sensor Dim Level (%)" | D43: If the fixture will dim when the sensor indicates the space is unnoccupied, enter the dimmed light level as a percentage. (ie enter 60% if the lights dim to 60% light output)
C44: Column Q "Daylight Controls Used?" | D44: Enter "Y" if the items in that line that are using Daylight Harvesting capablilties to dim the lights when ambient daylight is available. Only select "Y" for lights in the daylight area. The daylight area is the portion of a building’s interior floor area that is illuminated by natural light.
C45: Column R "High End Trim %" | D45: Enter the proposed maximum light output, if the LED will have a High End Trim level set. Lowest acceptable value is 60%.
C46: Column S "Installed Cost/ Fixture" | D46: Enter the installed cost per fixture / lamp.
C48: TLED Type | D48: Definition
C49: Type A | D49: Linear Replacement Lamp which operates on the existing ballast.
C50: Type B | D50: Linear Replacement Lamp which operates on line voltage and bypasses the existing ballast.
C51: Type C | D51: Linear Replacement Lamp which requires rewiring of the existing fixture to replace the ballast with a new external driver.
C53: Capability | D53: Definition
C54: Networking of Luminaires and Devices | D54: The capability of individual luminaires and control devices to exchange digital data with other luminaires and controls devices on the system. This capability is required at the room, space, or area level, but not at the whole building level or beyond (e.g. non-lighting systems, or the internet).
C55: Occupancy Sensing | D55: The capability to affect the operation of lighting equipment based upon detecting the presence or absence of people in a space.
C56: Daylight Harvesting / Photocell Control | D56: The capability to automatically affect the operation of lighting based on the amount of daylight and/or ambient light that is present in a space, area, or exterior environment. This capability is typically called Daylight Harvesting for Interior systems, and Photocell Control for Exterior systems.
C57: High-End Trim | D57: The capability to set the maximum light output to a less-than-maximum state of an individual or group of luminaires at the time of installation or commissioning. High-End Trim must be field reconfigurable. For fixtures that will have factor enabled with high end trim, must provide proof of setting upon close out
C58: Energy Monitoring | D58: The capability of a system, luminaire, or device to report its own energy consumption, or the energy consumption of any controlled device via direct measurement or other methodology. The method by which the system implements this capability must be clearly described. The sampling frequency and accuracy of reported data must be specified.

Sheet Existing Fixtures (hidden)
B3: Existing Fixture Information | E3: 2-ft T8 H.E. | G3: CFL's | J3: Pulse Start Metal Halide Lamp/Ballast | L3: T5 | P3: Fluorescent Abbreviations:
E4: 3-ft T8 H.E. | G4: Low Volt. Halogen Fixture (incl. transf.) | J4: 2-ft T8 / T12 | L4: 2-ft H.E. T8 | P4: BX | Q4: Biax /Twin Tube Lamp | R4: HPF | S4: High Power Ballast Factor > 1.0
E5: 4-ft T8 H.E. / Reduce Wattage | G5: Halogen/Quartz Lamps | J5: 3-ft T8 / T12 | L5: 3-ft H.E. T8 | P5: EE | Q5: Energy-Efficient Lamp | R5: HW | S5: Hard Wire Fixture
E6: 3-ft T8 H.E. | G6: Mercury Vapor (MV) | J6: 4-ft F48 T12 | L6: 4-ft T8 H.E. / Reduce Wattage | P6: EEMAG | Q6: Energy-Efficient Magnetic Balt. | R6: LPF | S6: Low Power Ballast Factor < 0.80
E7: 4-ft T8 H.E. / Reduce Wattage | G7: Low Pressure Sodium (LPS) | J7: 4-ft F48VHO T12 | L7: 8-ft T8 | P7: ELIG | Q7: Electronic Ballast | R7: RW | S7: Reduced Wattage T8 Systems
E8: 6-ft T8 | G8: High Pressure Sodium (HPS) | J8: 4-ft T12 | L8: Tandem Wired T8 H.E. | P8: HO | Q8: High Output Lamp | R8: STD | S8: Standard Ballast or Lamp
E9: 8-ft T8 | G9: Electronic Metal Halide Lamps | J9: 4-ft T8 | L9: Tandem-Wired Fluorescent | P9: HP | Q9: High Performance T8 Systems | R9: VHO | S9: Very High Output Lamp
E10: U-Tube T8 H.E. | G10: MH Track Lighting | J10: Five Foot T8 / T12
E11: MH Track Lighting | G11: Metal Halide (MH) | J11: Six Foot T12 & T12HO
B12: Click on any cell in the list below to make selection. | E12: Incandescent Lamps | J12: 8-ft T12HO
A13: Device Code | B13: Lighting Category | C13: Fixture Description | D13: Watts
B14: 2-ft H.E. T8
A15: 1F17ESN | B15: 2-ft H.E. T8 | C15: 1L2’ 17W T8EE/ELEE | D15: 17
A16: 1F17ESH | B16: 2-ft H.E. T8 | C16: 1L2’ 17W T8EE/ELEE HIGH PWR | D16: 20
A17: 1F28BXE | B17: 2-ft H.E. T8 | C17: 1L2’ F28BX/ELIG | D17: 32
A18: 2F17ESL | B18: 2-ft H.E. T8 | C18: 2L2’ 17W T8EE/ELEE LOW PWR | D18: 27
A19: 2F17ESN | B19: 2-ft H.E. T8 | C19: 2L2’ 17W T8EE/ELEE | D19: 32
A20: 2F17ESH | B20: 2-ft H.E. T8 | C20: 2L2’ 17W T8EE/ELEE HIGH PWR | D20: 40
A21: 2F28BXE | B21: 2-ft H.E. T8 | C21: 2L2’ F28BX/ELIG | D21: 63
A22: 3F17ESL | B22: 2-ft H.E. T8 | C22: 3L2’ 17W T8EE/ELEE LOW PWR | D22: 39
A23: 3F17ESN | B23: 2-ft H.E. T8 | C23: 3L2’ 17W T8EE/ELEE | D23: 46
A24: 3F17ESH | B24: 2-ft H.E. T8 | C24: 3L2’ 17W T8EE/ELEE HIGH PWR | D24: 61
A25: 3F28BXE | B25: 2-ft H.E. T8 | C25: 3L2’ F28BX/ELIG | D25: 94
A26: 1F17ESL | B26: 2-ft H.E. T8 | C26: 1L2’ 17W T8EE/ELEE LOW PWR | D26: 14
B27: 3-ft H.E. T8
A28: 1F25ESL | B28: 3-ft H.E. T8 | C28: 1L3’ 25W T8EE/ELEE LOW PWR | D28: 21
A29: 1F25ESN | B29: 3-ft H.E. T8 | C29: 1L3’ 25W T8EE/ELEE | D29: 24
A30: 1F25ESH | B30: 3-ft H.E. T8 | C30: 1L3’ 25W T8EE/ELEE HIGH PWR | D30: 30
A31: 2F25ESL | B31: 3-ft H.E. T8 | C31: 2L3’ 25W T8EE/ELEE LOW PWR | D31: 40
A32: 2F25ESN | B32: 3-ft H.E. T8 | C32: 2L3’ 25W T8EE/ELEE | D32: 45
A33: 2F25ESH | B33: 3-ft H.E. T8 | C33: 2L3’ 25W T8EE/ELEE HIGH PWR | D33: 60
A34: 3F25ESL | B34: 3-ft H.E. T8 | C34: 3L3’ 25W T8EE/ELEE LOW PWR | D34: 58
A35: 3F25ESN | B35: 3-ft H.E. T8 | C35: 3L3’ 25W T8EE/ELEE | D35: 67
A36: 3F25ESH | B36: 3-ft H.E. T8 | C36: 3L3’ 25W T8EE/ELEE HIGH PWR | D36: 90
B37: 4-ft T8 H.E. / Reduce Wattage
A38: 1F25EEH | B38: 4-ft T8 H.E. / Reduce Wattage | C38: 1L4’ 25W T8EE/ELEE HIGH PWR | D38: 30
A39: 1F25EEE | B39: 4-ft T8 H.E. / Reduce Wattage | C39: 1L4’ 25W T8EE/ELEE | D39: 22
A40: 1F25EEL | B40: 4-ft T8 H.E. / Reduce Wattage | C40: 1L4’ 25W T8EE/ELEE LOW PWR | D40: 19
A41: 2F25EEH | B41: 4-ft T8 H.E. / Reduce Wattage | C41: 2L4’ 25W T8EE/ELEE HIGH PWR | D41: 57
A42: 2F25EEE | B42: 4-ft T8 H.E. / Reduce Wattage | C42: 2L4’ 25W T8EE/ELEE | D42: 43
A43: 2F25EEL | B43: 4-ft T8 H.E. / Reduce Wattage | C43: 2L4’ 25W T8EE/ELEE LOW PWR | D43: 37
A44: 3F25EEH | B44: 4-ft T8 H.E. / Reduce Wattage | C44: 3L4’ 25W T8EE/ELEE HIGH PWR | D44: 86
A45: 3F25EEE | B45: 4-ft T8 H.E. / Reduce Wattage | C45: 3L4’ 25W T8EE/ELEE | D45: 64
A46: 3F25EEL | B46: 4-ft T8 H.E. / Reduce Wattage | C46: 3L4’ 25W T8EE/ELEE LOW PWR | D46: 57
A47: 4F25EEH | B47: 4-ft T8 H.E. / Reduce Wattage | C47: 4L4’ 25W T8EE/ELEE HIGH PWR | D47: 111
A48: 4F25EEE | B48: 4-ft T8 H.E. / Reduce Wattage | C48: 4L4’ 25W T8EE/ELEE | D48: 86
A49: 4F25EEL | B49: 4-ft T8 H.E. / Reduce Wattage | C49: 4L4’ 25W T8EE/ELEE LOW PWR | D49: 75
A50: 1F28EEH | B50: 4-ft T8 H.E. / Reduce Wattage | C50: 1L4’ 28W T8EE/ELEE HIGH PWR | D50: 33
A51: 1F28EEE | B51: 4-ft T8 H.E. / Reduce Wattage | C51: 1L4’ 28W T8EE/ELEE | D51: 24
A52: 1F28EEL | B52: 4-ft T8 H.E. / Reduce Wattage | C52: 1L4’ 28W T8EE/ELEE LOW PWR | D52: 22
A53: 2F28EEH | B53: 4-ft T8 H.E. / Reduce Wattage | C53: 2L4’ 28WT8EE/ELEE HIGH PWR | D53: 64
A54: 2F28EEE | B54: 4-ft T8 H.E. / Reduce Wattage | C54: 2L4’ 28W T8EE/ELEE | D54: 48
A55: 2F28EEL | B55: 4-ft T8 H.E. / Reduce Wattage | C55: 2L4’ 28W T8EE/ELEE LOW PWR | D55: 42
A56: 3F28EEH | B56: 4-ft T8 H.E. / Reduce Wattage | C56: 3L4’ 28W T8EE/ELEE HIGH PWR | D56: 96
A57: 3F28EEE | B57: 4-ft T8 H.E. / Reduce Wattage | C57: 3L4’ 28W T8EE/ELEE | D57: 72
A58: 3F28EEL | B58: 4-ft T8 H.E. / Reduce Wattage | C58: 3L4’ 28W T8EE/ELEE LOW PWR | D58: 63
A59: 4F28EEH | B59: 4-ft T8 H.E. / Reduce Wattage | C59: 4L4’ 28W T8EE/ELEE HIGH PWR | D59: 126
A60: 4F28EEE | B60: 4-ft T8 H.E. / Reduce Wattage | C60: 4L4’ 28W T8EE/ELEE | D60: 94
A61: 4F28EEL | B61: 4-ft T8 H.E. / Reduce Wattage | C61: 4L4’ 28W T8EE/ELEE LOW PWR | D61: 83
A62: 1F30EEH | B62: 4-ft T8 H.E. / Reduce Wattage | C62: 1L4’ 30W T8EE/ELEE HIGH PWR | D62: 36
A63: 1F30EEE | B63: 4-ft T8 H.E. / Reduce Wattage | C63: 1L4’ 30W T8EE/ELEE | D63: 26
A64: 1F30EEL | B64: 4-ft T8 H.E. / Reduce Wattage | C64: 1L4’ 30W T8EE/ELEE LOW PWR | D64: 24
A65: 2F30EEH | B65: 4-ft T8 H.E. / Reduce Wattage | C65: 2L4’ 30WT8EE/ELEE HIGH PWR | D65: 69
A66: 2F30EEE | B66: 4-ft T8 H.E. / Reduce Wattage | C66: 2L4’ 30W T8EE/ELEE | D66: 52
A67: 2F30EEL | B67: 4-ft T8 H.E. / Reduce Wattage | C67: 2L4’ 30W T8EE/ELEE LOW PWR | D67: 45
A68: 3F30EEH | B68: 4-ft T8 H.E. / Reduce Wattage | C68: 3L4’ 30W T8EE/ELEE HIGH PWR | D68: 103
A69: 3F30EEE | B69: 4-ft T8 H.E. / Reduce Wattage | C69: 3L4’ 30W T8EE/ELEE | D69: 77
A70: 3F30EEL | B70: 4-ft T8 H.E. / Reduce Wattage | C70: 3L4’ 30W T8EE/ELEE LOW PWR | D70: 68
A71: 4F30EEH | B71: 4-ft T8 H.E. / Reduce Wattage | C71: 4L4’ 30W T8EE/ELEE HIGH PWR | D71: 133
A72: 4F30EEE | B72: 4-ft T8 H.E. / Reduce Wattage | C72: 4L4’ 30W T8EE/ELEE | D72: 101
A73: 4F30EEL | B73: 4-ft T8 H.E. / Reduce Wattage | C73: 4L4’ 30W T8EE/ELEE LOW PWR | D73: 89
A74: 1F32EEH | B74: 4-ft T8 H.E. / Reduce Wattage | C74: 1L4’ 32W T8EE/ELEE HIGH PWR | D74: 38
A75: 1F32EEE | B75: 4-ft T8 H.E. / Reduce Wattage | C75: 1L4’ 32W T8EE/ELEE | D75: 28
A76: 1F32EEL | B76: 4-ft T8 H.E. / Reduce Wattage | C76: 1L4’ 32W T8EE/ELEE LOW PWR | D76: 25
A77: 1F32SSE | B77: 4-ft T8 H.E. / Reduce Wattage | C77: 1L4’ 32W T8/ELIG | D77: 30
A78: 2F32SSE | B78: 4-ft T8 H.E. / Reduce Wattage | C78: 2L4’ 32W T8/ELIG | D78: 60
A79: 5F32EEH | B79: 4-ft T8 H.E. / Reduce Wattage | C79: 5L4’ 32W T8EE/ELEE HIGH PWR | D79: 182
A80: 6F28EEE | B80: 4-ft T8 H.E. / Reduce Wattage | C80: 6L4’ 28W T8EE/ELEE | D80: 144
A81: 6F28EEH | B81: 4-ft T8 H.E. / Reduce Wattage | C81: 6L4’ 28W T8EE/ELEE HIGH PWR | D81: 192
A82: 6F28EEL | B82: 4-ft T8 H.E. / Reduce Wattage | C82: 6L4’ 28W T8EE/ELEE LOW PWR | D82: 126
A83: 6F30EEE | B83: 4-ft T8 H.E. / Reduce Wattage | C83: 6L4’ 30W T8EE/ELEE | D83: 154
A84: 6F30EEL | B84: 4-ft T8 H.E. / Reduce Wattage | C84: 6L4’ 30W T8EE/ELEE LOW PWR | D84: 136
A85: 7F32EEH | B85: 4-ft T8 H.E. / Reduce Wattage | C85: 7L4’ 32W T8EE/ELEE HIGH PWR | D85: 250
A86: 2F32EEH | B86: 4-ft T8 H.E. / Reduce Wattage | C86: 2L4’ 32W T8EE/ELEE HIGH PWR | D86: 73
A87: 2F32EEE | B87: 4-ft T8 H.E. / Reduce Wattage | C87: 2L4’ 32W T8EE/ELEE | D87: 53
A88: 2F32EEL | B88: 4-ft T8 H.E. / Reduce Wattage | C88: 2L4’ 32W T8EE/ELEE LOW PWR | D88: 47
A89: 3F32EEH | B89: 4-ft T8 H.E. / Reduce Wattage | C89: 3L4’ 32W T8EE/ELEE HIGH PWR | D89: 109
A90: 3F32EEE | B90: 4-ft T8 H.E. / Reduce Wattage | C90: 3L4’ 32W T8EE/ELEE | D90: 82
A91: 3F32EEL | B91: 4-ft T8 H.E. / Reduce Wattage | C91: 3L4’ 32W T8EE/ELEE LOW PWR | D91: 72
A92: 4F32EEH | B92: 4-ft T8 H.E. / Reduce Wattage | C92: 4L4’ 32W T8EE/ELEE HIGH PWR | D92: 141
A93: 4F32EEE | B93: 4-ft T8 H.E. / Reduce Wattage | C93: 4L4’ 32W T8EE/ELEE | D93: 107
A94: 4F32EEL | B94: 4-ft T8 H.E. / Reduce Wattage | C94: 4L4’ 32W T8EE/ELEE LOW PWR | D94: 95
A95: 6F32EEH | B95: 4-ft T8 H.E. / Reduce Wattage | C95: 6L4’ 32W T8EE/ELEE HIGH PWR | D95: 218
A96: 6F32EEE | B96: 4-ft T8 H.E. / Reduce Wattage | C96: 6L4’ 32W T8EE/ELEE | D96: 168
A97: 6F32EEL | B97: 4-ft T8 H.E. / Reduce Wattage | C97: 6L4’ 32W T8EE/ELEE LOW PWR | D97: 146
B98: 3-ft H.E. T8
A99: 1F25ESL | B99: 3-ft H.E. T8 | C99: 1L3’ 25W T8EE/ELEE LOW PWR | D99: 21
A100: 1F25ESN | B100: 3-ft H.E. T8 | C100: 1L3’ 25W T8EE/ELEE | D100: 24
A101: 1F25ESH | B101: 3-ft H.E. T8 | C101: 1L3’ 25W T8EE/ELEE HIGH PWR | D101: 30
A102: 2F25ESL | B102: 3-ft H.E. T8 | C102: 2L3’ 25W T8EE/ELEE LOW PWR | D102: 40
A103: 2F25ESN | B103: 3-ft H.E. T8 | C103: 2L3’ 25W T8EE/ELEE | D103: 45
A104: 2F25ESH | B104: 3-ft H.E. T8 | C104: 2L3’ 25W T8EE/ELEE HIGH PWR | D104: 60
A105: 3F25ESL | B105: 3-ft H.E. T8 | C105: 3L3’ 25W T8EE/ELEE LOW PWR | D105: 58
A106: 3F25ESN | B106: 3-ft H.E. T8 | C106: 3L3’ 25W T8EE/ELEE | D106: 67
A107: 3F25ESH | B107: 3-ft H.E. T8 | C107: 3L3’ 25W T8EE/ELEE HIGH PWR | D107: 90
B108: 4-ft T8 H.E. / Reduce Wattage
A109: 1F25EEH | B109: 4-ft T8 H.E. / Reduce Wattage | C109: 1L4’ 25W T8EE/ELEE HIGH PWR | D109: 30
A110: 1F25EEE | B110: 4-ft T8 H.E. / Reduce Wattage | C110: 1L4’ 25W T8EE/ELEE | D110: 22
A111: 1F25EEL | B111: 4-ft T8 H.E. / Reduce Wattage | C111: 1L4’ 25W T8EE/ELEE LOW PWR | D111: 19
A112: 2F25EEH | B112: 4-ft T8 H.E. / Reduce Wattage | C112: 2L4’ 25W T8EE/ELEE HIGH PWR | D112: 57
A113: 2F25EEE | B113: 4-ft T8 H.E. / Reduce Wattage | C113: 2L4’ 25W T8EE/ELEE | D113: 43
A114: 2F25EEL | B114: 4-ft T8 H.E. / Reduce Wattage | C114: 2L4’ 25W T8EE/ELEE LOW PWR | D114: 37
A115: 3F25EEH | B115: 4-ft T8 H.E. / Reduce Wattage | C115: 3L4’ 25W T8EE/ELEE HIGH PWR | D115: 86
A116: 3F25EEE | B116: 4-ft T8 H.E. / Reduce Wattage | C116: 3L4’ 25W T8EE/ELEE | D116: 64
A117: 3F25EEL | B117: 4-ft T8 H.E. / Reduce Wattage | C117: 3L4’ 25W T8EE/ELEE LOW PWR | D117: 57
A118: 4F25EEH | B118: 4-ft T8 H.E. / Reduce Wattage | C118: 4L4’ 25W T8EE/ELEE HIGH PWR | D118: 111
A119: 4F25EEE | B119: 4-ft T8 H.E. / Reduce Wattage | C119: 4L4’ 25W T8EE/ELEE | D119: 86
A120: 4F25EEL | B120: 4-ft T8 H.E. / Reduce Wattage | C120: 4L4’ 25W T8EE/ELEE LOW PWR | D120: 75
A121: 1F28EEH | B121: 4-ft T8 H.E. / Reduce Wattage | C121: 1L4’ 28W T8EE/ELEE HIGH PWR | D121: 33
A122: 1F28EEE | B122: 4-ft T8 H.E. / Reduce Wattage | C122: 1L4’ 28W T8EE/ELEE | D122: 24
A123: 1F28EEL | B123: 4-ft T8 H.E. / Reduce Wattage | C123: 1L4’ 28W T8EE/ELEE LOW PWR | D123: 22
A124: 2F28EEH | B124: 4-ft T8 H.E. / Reduce Wattage | C124: 2L4’ 28WT8EE/ELEE HIGH PWR | D124: 64
A125: 2F28EEE | B125: 4-ft T8 H.E. / Reduce Wattage | C125: 2L4’ 28W T8EE/ELEE | D125: 48
A126: 2F28EEL | B126: 4-ft T8 H.E. / Reduce Wattage | C126: 2L4’ 28W T8EE/ELEE LOW PWR | D126: 42
A127: 3F28EEH | B127: 4-ft T8 H.E. / Reduce Wattage | C127: 3L4’ 28W T8EE/ELEE HIGH PWR | D127: 96
A128: 3F28EEE | B128: 4-ft T8 H.E. / Reduce Wattage | C128: 3L4’ 28W T8EE/ELEE | D128: 72
A129: 3F28EEL | B129: 4-ft T8 H.E. / Reduce Wattage | C129: 3L4’ 28W T8EE/ELEE LOW PWR | D129: 63
A130: 4F28EEH | B130: 4-ft T8 H.E. / Reduce Wattage | C130: 4L4’ 28W T8EE/ELEE HIGH PWR | D130: 126
A131: 4F28EEE | B131: 4-ft T8 H.E. / Reduce Wattage | C131: 4L4’ 28W T8EE/ELEE | D131: 94
A132: 4F28EEL | B132: 4-ft T8 H.E. / Reduce Wattage | C132: 4L4’ 28W T8EE/ELEE LOW PWR | D132: 83
A133: 1F30EEH | B133: 4-ft T8 H.E. / Reduce Wattage | C133: 1L4’ 30W T8EE/ELEE HIGH PWR | D133: 36
A134: 1F30EEE | B134: 4-ft T8 H.E. / Reduce Wattage | C134: 1L4’ 30W T8EE/ELEE | D134: 26
A135: 1F30EEL | B135: 4-ft T8 H.E. / Reduce Wattage | C135: 1L4’ 30W T8EE/ELEE LOW PWR | D135: 24
A136: 2F30EEH | B136: 4-ft T8 H.E. / Reduce Wattage | C136: 2L4’ 30WT8EE/ELEE HIGH PWR | D136: 69
A137: 2F30EEE | B137: 4-ft T8 H.E. / Reduce Wattage | C137: 2L4’ 30W T8EE/ELEE | D137: 52
A138: 2F30EEL | B138: 4-ft T8 H.E. / Reduce Wattage | C138: 2L4’ 30W T8EE/ELEE LOW PWR | D138: 45
A139: 3F30EEH | B139: 4-ft T8 H.E. / Reduce Wattage | C139: 3L4’ 30W T8EE/ELEE HIGH PWR | D139: 103
A140: 3F30EEE | B140: 4-ft T8 H.E. / Reduce Wattage | C140: 3L4’ 30W T8EE/ELEE | D140: 77
A141: 3F30EEL | B141: 4-ft T8 H.E. / Reduce Wattage | C141: 3L4’ 30W T8EE/ELEE LOW PWR | D141: 68
A142: 4F30EEH | B142: 4-ft T8 H.E. / Reduce Wattage | C142: 4L4’ 30W T8EE/ELEE HIGH PWR | D142: 133
A143: 4F30EEE | B143: 4-ft T8 H.E. / Reduce Wattage | C143: 4L4’ 30W T8EE/ELEE | D143: 101
A144: 4F30EEL | B144: 4-ft T8 H.E. / Reduce Wattage | C144: 4L4’ 30W T8EE/ELEE LOW PWR | D144: 89
A145: 1F32EEH | B145: 4-ft T8 H.E. / Reduce Wattage | C145: 1L4’ 32W T8EE/ELEE HIGH PWR | D145: 38
A146: 1F32EEE | B146: 4-ft T8 H.E. / Reduce Wattage | C146: 1L4’ 32W T8EE/ELEE | D146: 28
A147: 1F32EEL | B147: 4-ft T8 H.E. / Reduce Wattage | C147: 1L4’ 32W T8EE/ELEE LOW PWR | D147: 25
A148: 1F32SSE | B148: 4-ft T8 H.E. / Reduce Wattage | C148: 1L4’ 32W T8/ELIG | D148: 30
A149: 2F32SSE | B149: 4-ft T8 H.E. / Reduce Wattage | C149: 2L4’ 32W T8/ELIG | D149: 60
A150: 5F32EEH | B150: 4-ft T8 H.E. / Reduce Wattage | C150: 5L4’ 32W T8EE/ELEE HIGH PWR | D150: 182
A151: 6F28EEE | B151: 4-ft T8 H.E. / Reduce Wattage | C151: 6L4’ 28W T8EE/ELEE | D151: 144
A152: 6F28EEH | B152: 4-ft T8 H.E. / Reduce Wattage | C152: 6L4’ 28W T8EE/ELEE HIGH PWR | D152: 192
A153: 6F28EEL | B153: 4-ft T8 H.E. / Reduce Wattage | C153: 6L4’ 28W T8EE/ELEE LOW PWR | D153: 126
A154: 6F30EEE | B154: 4-ft T8 H.E. / Reduce Wattage | C154: 6L4’ 30W T8EE/ELEE | D154: 154
A155: 6F30EEL | B155: 4-ft T8 H.E. / Reduce Wattage | C155: 6L4’ 30W T8EE/ELEE LOW PWR | D155: 136
A156: 7F32EEH | B156: 4-ft T8 H.E. / Reduce Wattage | C156: 7L4’ 32W T8EE/ELEE HIGH PWR | D156: 250
A157: 2F32EEH | B157: 4-ft T8 H.E. / Reduce Wattage | C157: 2L4’ 32W T8EE/ELEE HIGH PWR | D157: 73
A158: 2F32EEE | B158: 4-ft T8 H.E. / Reduce Wattage | C158: 2L4’ 32W T8EE/ELEE | D158: 53
A159: 2F32EEL | B159: 4-ft T8 H.E. / Reduce Wattage | C159: 2L4’ 32W T8EE/ELEE LOW PWR | D159: 47
A160: 3F32EEH | B160: 4-ft T8 H.E. / Reduce Wattage | C160: 3L4’ 32W T8EE/ELEE HIGH PWR | D160: 109
A161: 3F32EEE | B161: 4-ft T8 H.E. / Reduce Wattage | C161: 3L4’ 32W T8EE/ELEE | D161: 82
A162: 3F32EEL | B162: 4-ft T8 H.E. / Reduce Wattage | C162: 3L4’ 32W T8EE/ELEE LOW PWR | D162: 72
A163: 4F32EEH | B163: 4-ft T8 H.E. / Reduce Wattage | C163: 4L4’ 32W T8EE/ELEE HIGH PWR | D163: 141
A164: 4F32EEE | B164: 4-ft T8 H.E. / Reduce Wattage | C164: 4L4’ 32W T8EE/ELEE | D164: 107
A165: 4F32EEL | B165: 4-ft T8 H.E. / Reduce Wattage | C165: 4L4’ 32W T8EE/ELEE LOW PWR | D165: 95
A166: 6F32EEH | B166: 4-ft T8 H.E. / Reduce Wattage | C166: 6L4’ 32W T8EE/ELEE HIGH PWR | D166: 218
A167: 6F32EEE | B167: 4-ft T8 H.E. / Reduce Wattage | C167: 6L4’ 32W T8EE/ELEE | D167: 168
A168: 6F32EEL | B168: 4-ft T8 H.E. / Reduce Wattage | C168: 6L4’ 32W T8EE/ELEE LOW PWR | D168: 146
B169: U-Tube H.E. T8
B170: 4-ft T8 H.E. / Reduce Wattage | C170: 1L U-Tube 28W T8EE/ELEE | D170: 24
A171: 1F59SSE | B171: 4-ft T8 H.E. / Reduce Wattage | C171: 1L U-Tube 28W T8EE/ELEE HIGH PWR | D171: 33
A172: 1F80SSE | B172: 4-ft T8 H.E. / Reduce Wattage | C172: 1L U-Tube 28W T8EE/ELEE LOW PWR | D172: 22
A173: 2F59SSE | B173: 4-ft T8 H.E. / Reduce Wattage | C173: 1L U-Tube 32W T8/ELIG | D173: 30
A174: 2F59SSL | B174: 4-ft T8 H.E. / Reduce Wattage | C174: 1L U-Tube 32W T8EE/ELEE | D174: 28
A175: 2F80SSE | B175: 4-ft T8 H.E. / Reduce Wattage | C175: 1L U-Tube 32W T8EE/ELEE HIGH PWR | D175: 38
B176: 4-ft T8 H.E. / Reduce Wattage | C176: 1L U-Tube 32W T8EE/ELEE LOW PWR | D176: 25
A177: 1M0100E | B177: 4-ft T8 H.E. / Reduce Wattage | C177: 2L U-Tube 28W T8EE/ELEE | D177: 48
A178: 1M0150E | B178: 4-ft T8 H.E. / Reduce Wattage | C178: 2L U-Tube 28W T8EE/ELEE LOW PWR | D178: 42
B179: 4-ft T8 H.E. / Reduce Wattage | C179: 2L U-Tube 28WT8EE/ELEE HIGH PWR | D179: 64
A180: 1F72HSE | B180: 4-ft T8 H.E. / Reduce Wattage | C180: 2L U-Tube 32W T8/ELIG | D180: 60
B181: 4-ft T8 H.E. / Reduce Wattage | C181: 2L U-Tube 32W T8EE/ELEE | D181: 53
A182: 1I0015 | B182: 4-ft T8 H.E. / Reduce Wattage | C182: 2L U-Tube 32W T8EE/ELEE HIGH PWR | D182: 73
A183: 1I0020 | B183: 4-ft T8 H.E. / Reduce Wattage | C183: 2L U-Tube 32W T8EE/ELEE LOW PWR | D183: 47
A184: 1I0025 | B184: 4-ft T8 H.E. / Reduce Wattage | C184: 3L U-Tube 28W T8EE/ELEE | D184: 72
A185: 1I0034 | B185: 4-ft T8 H.E. / Reduce Wattage | C185: 3L U-Tube 28W T8EE/ELEE HIGH PWR | D185: 96
A186: 1I0036 | B186: 4-ft T8 H.E. / Reduce Wattage | C186: 3L U-Tube 28W T8EE/ELEE LOW PWR | D186: 63
A187: 1I0040 | B187: 4-ft T8 H.E. / Reduce Wattage | C187: 3L U-Tube 32W T8EE/ELEE | D187: 82
A188: 1I0042 | B188: 4-ft T8 H.E. / Reduce Wattage | C188: 3L U-Tube 32W T8EE/ELEE HIGH PWR | D188: 109
A189: 1I0045 | B189: 4-ft T8 H.E. / Reduce Wattage | C189: 3L U-Tube 32W T8EE/ELEE LOW PWR | D189: 72
A190: 1I0052 | B190: 8-ft T8
A191: 1I0054 | B191: 8-ft T8 | C191: 1L8’ T8/ELIG | D191: 60
A192: 1I0055 | B192: 8-ft T8 | C192: 1L8’ T8 HO/ELIG | D192: 85
A193: 1I0060 | B193: 8-ft T8 | C193: 2L8’ T8/ELIG | D193: 109
A194: 1I0065 | B194: 8-ft T8 | C194: 2L8’ T8/ELIG LOW PWR | D194: 100
A195: 1I0067 | B195: 8-ft T8 | C195: 2L8’ T8 HO/ELIG | D195: 160
A196: 1I0069 | B196: MH Track Lighting
A197: 1I0072 | B197: MH Track Lighting | C197: 100W MH SPOT | D197: 111
A198: 1I0075 | B198: MH Track Lighting | C198: 150W MH SPOT | D198: 162
A199: 1I0080 | B199: Six Foot
A200: 1I0085 | B200: Six Foot | C200: 1L6' T8HO/ELIG | D200: 80
A201: 1I0090 | B201: Incandescent Lamps
A202: 1I0093 | B202: Incandescent Lamps | C202: 15W INC | D202: 15
... 550 more rows

Sheet New-Fixtures (hidden)
B1: Instructions for entering Proposed lighting fixtures and retrofits. Must be either DLC or Energy Star Approved for to qualify for incentives
B3: Proposed Lighting Fixtures (DLC Qualified): | G3: Proposed Lighting Fixtures (Energy Star):
A5: 1 | B5: Use below link to go to the DLC Qualified Products List: **Please note that you must possess a DLC account | F5: 1 | G5: Use below link to go to the Energy Star Certified Products List:
B6: https://www.designlights.org/search/?search= | G6: https://www.energystar.gov/productfinder/product/certified-light-fixtures/results?scrollTo=500&search_text=&fixture_type_isopen=&markets_filter=United+States&zip_code_filter=&product_types=Select+a+Product+Category&sort_by=light_output_lumens&sort_direction=asc&page_number=0&lastpage=0
B7: Log into your DLC account to access the QPLs
A9: 2 | B9: On this page, use the Filters on left-hand side to refine your search to find desired manufacturer, model, etc. as shown. Customize the view to show the relevant information needed to complete form: | F9: 2 | G9: On this page, use the Filters on left-hand side to refine your search to find desired manufacturer, model, etc. as shown:
A32: 3 | B32: This produces the output below. Selecting gives you the full product listing that must be provided in along with the product spec. sheet to complete the request for a lighting efficiency incentive.
A58: 4 | B58: Using whatever tools available, create a file (pdf preferable) of the product QPL using the following naming convention:
B60: Manufacturer ModelNum [brief description] - DLC.pdf
B61: RAB EZPANHE2X4 2x4 troffer - DLC.pdf
A63: 5 | B63: Likewise, use the same naming convention for the product specification:
F64: 3 | G64: Follow instructions 4-7 for DLC lighting fixtures. In this case, the file naming convention should look like:
B65: RAB EZPANHE2X4 2x4 troffer - spec.pdf
G66: MaxLite RF408ICAT27WJ Downlight - EStar.pdf
A67: 6 | B67: The identical naming convention should be entered on the Fixture Data tab, along with the fixture wattage. The description at the end may be expanded as desired/necessary. Note: If a descripency exists between the specification and DLC wattages, enter the specification wattage.
A75: 7 | B75: For TLED - Type C retrofits, provide the same information for both the TLED and its approved driver.

Sheet Std Ltg (hidden)
B3: Standard Lighting
C6: As of June 12, 2020, all Lighting projects that use Standard Fixtures only, are required to go through either of the following paths in order to receive incentives:
C10: 1. Lighting Portal
D12: The Amplify lighting portal has been developed to simplify the way lighting submittals are handled. The benefits include: - Eliminates the requirement to submit lighting cut sheets and DLC/Energy Star snapshots - Eliminates back and forth between utility and contractor - Speeds up the turn around time to receive a Letter of Agreement (LOA) necessary to receive the incentive.
D13: To enroll in this program, please contact Leidos (program administrator):
E15: email: | F15: Lars.J.Brasz@Leidos.com
E16: phone: | F16: (315) 434 7206
C19: 2. Lighting Express Rebates or Upstream Rebates
D21: Click on the link for the latest Express/Downstream rebates.
F23: https://energizect.com/explore-solutions/energy-efficient-lighting/commercial-lighting

Sheet EMS existing (hidden)
B3: Existing System Description
C5: Provide a complete description of the existing EMS equipment (if any)
C7: a. | D7: Which of the building equipment listed on the prior form are currently (or not) being controlled - (AHU's, RTU's, chillers, boilers, lighting, etc.
C8: b. | D8: Any existing control system and strategies being used to manage equipment operation. This can include: manual controls, programable thermostats, time clocks, equipment scheduling, etc. Provide documentation substantiating scheduling "time of day" controls.
C9: c. | D9: Building personell or contractor that maintains and/or has the ability to make changes to system.
B12: EXAMPLE: | C12: Existing System
D13: The building was originally built in 2002. It is a two story, multi-tenant outpatient cancer treatment center with two (2) Packaged Rooftop HVAC Units and 72 VAV's serving 36,000 sq. ft. of exam, lab, & office spaces. Fintube radiation runs along the northern exposure of the building with hot water reheat coils in each VAV. Original to the building there is an Andover Continuum DDC system currently controlling the 2 RTU's and VAV's. The general hours of operation are M-F 7am to 5pm, Sa = OFF and Su= OFF.
C15: Existing System Strategy
D16: The VAV's serving the first and second floor are Enviro-Tec's with hot water reheat coils. Original to the building there is an Andover Continuum DDC system currently controlling the 2 RTU's and 72 VAV's. The dry bulb economizer sequence is controlled through the RTU manufacturer's control.
C20: Existing System
C35: Existing System Strategy

Sheet High Perform Ltg (hidden)

Sheet Daylighting (hidden)
B3: Daylighting Controls:
C5: Lighting Schedule | D5: Months included in analysis
D6: Jan. | E6: Feb. | F6: Mar. | G6: Apr. | H6: May | I6: June
C7: Months | D7: 0 | E7: 0 | F7: 0 | G7: 0 | H7: 0 | I7: 0
D8: July | E8: Aug. | F8: Sept. | G8: Oct. | H8: Nov. | I8: Dec.
D9: 0 | E9: 0 | F9: 0 | G9: 0 | H9: 0 | I9: 0
C11: Hours of Operation | J11: Controlled Fixture Schedule
D12: Start Time | E12: End Time | F12: Hours/ day | J12: Fixture designation | K12: Qty controlled
C13: Monday | D13: ='Project Data'!G22 -> 00:00:00 | E13: ='Project Data'!H22 -> 00:00:00 | F13: =(E13-D13)*24 -> 0
C14: Tuesday | D14: ='Project Data'!#REF! ->  | E14: ='Project Data'!#REF! -> 
C15: Wednesday | D15: ='Project Data'!#REF! ->  | E15: ='Project Data'!#REF! -> 
C16: Thursday | D16: ='Project Data'!G25 -> 00:00:00 | E16: ='Project Data'!H25 -> 00:00:00 | F16: 0
C17: Friday | D17: ='Project Data'!G26 -> 00:00:00 | E17: ='Project Data'!H26 -> 00:00:00 | F17: =(E17-D17)*24 -> 0 | J17: =Picklists!D5 -> 0 | K17: =SUMIFS(Lighting!#REF!,Lighting!#REF!,"Y",Lighting!#REF!,Picklists!D5) -> 
C18: Saturday | D18: ='Project Data'!G23 -> 00:00:00 | E18: ='Project Data'!H23 -> 00:00:00 | F18: 0 | J18: =Picklists!D9 -> 0 | K18: =SUMIFS(Lighting!#REF!,Lighting!#REF!,"Y",Lighting!#REF!,Picklists!D9) -> 
C19: Sunday | D19: ='Project Data'!G24 -> 00:00:00 | E19: ='Project Data'!H24 -> 00:00:00 | F19: 0 | J19: =Picklists!D7 -> 0 | K19: =SUMIFS(Lighting!#REF!,Lighting!#REF!,"Y",Lighting!#REF!,Picklists!D7) -> 
D22: Building Type | E22: ='Project Data'!D13 -> 0
D25: Window to wall ratio % | F25: (0.25 - 0.99) | K25: =SUM(K17:K24) -> 

Sheet W-9 (hidden)
B4: Substitute Form W-9 Request for Taxpayer Identification Number and Certification
B5: (Give this form to the requester. DO NOT send to IRS)
B7: NAME (If joint names, list first and circle the name of the person or entity whose number you enter in Part I below. See INSTRUCTIONS under “Name” if your name has changed.)
B10: ADDRESS (Number and Street)
B13: CITY | I13: STATE | K13: ZIP CODE
B16: PART I | C16: TAXPAYER IDENTIFICATION NUMBER
B18: Enter your taxpayer identification number in the appropriate box. For individuals and sole proprietors, this is your social security number. For other entities, it is your employer identification number. If you do not have a number, see How To Obtain a TIN, on Instruction form EMS6002-2.
C20: SOCIAL SECURITY NUMBER | G20: EMPLOYER IDENTIFICATION NUMBER
B23: Certification - Under the penalties of perjury, I certify that:
B25: (1) The number shown on this form is my correct taxpayer identification number (or I am waiting for a number to be issued to me), and
B27: (2) I am not subject to backup withholding because: (a) I am exempt from backup withholding, or (b) I have not been notified by the Internal Revenue Service (IRS) that I am subject to backup withholding as a result of a failure to report all interest or dividends, or (c) the IRS has notified me that I am no longer subject to backup withholding (does not apply to real estate transactions, mortgage interest paid, the acquisition or abandonment of secured property, contributions to an individual retirement arrangement (IRA), and payments other than interest and dividends).
B29: Certification Instructions - You must cross out item (2) above if you have been notified by the IRS that you are currently subject to backup withholding because of underreporting interest or dividends on your tax return. (Also, see Signing the Certification under Specific Instructions on instruction form EMS6002-2.
B31: PART II FOR PAYEES EXEMPT FROM BACKUP WITHHOLDING (See Instructions)
B33: Check one of the following below, if applicable. | I33: Exemption Block
B35: 1) | C35: _____ | D35: A corporation
B36: 2) | C36: _____ | D36: An organization exempt from tax under section 501 (a), or an individual retirement plan (IRA), or a custodial account under 403(b)(7).
B37: 3) | C37: _____ | D37: The United States or any of its agencies or instrumentalities.
B38: 4) | C38: _____ | D38: A state, The District of Columbia, a possession of the United States, or any of their political subdivisions or instrumentalities.
B39: 5) | C39: _____ | D39: A foreign government or any of its political subdivisions, agencies, or instrumentalities.
B40: 6) | C40: _____ | D40: An international organization or any of its agencies or instrumentalities.
B41: 7) | C41: _____ | D41: A foreign central bank of issue.
B42: 8) | C42: _____ | D42: A dealer in securities or commodities required to register in the U.S. or a possession of the U.S.
B43: 9) | C43: _____ | D43: A futures commission merchant registered with the Commodity Futures Trading Commission.
B44: 10) | C44: _____ | D44: A real estate investment trust.
B45: 11) | C45: _____ | D45: An entity registered at all times during the tax year under the Investment Company Act of 1940.
B46: 12) | C46: _____ | D46: A financial institution.
C48: Signature | K48: Date
B49: Please sign here:

Sheet Picklists (hidden)
A1: 2019 Savings Caps | G1: Fixture Type | H1: Lifetime
A2: Category | B2: Code | C2: $/kWh A Cap | D2: $/kW S Cap | E2: % Cost | G2: New Fixtures | H2: 13
A3: TLED - Interior (Type A & B) | B3: Standard Interior | G3: New Fixtures w/ LLLC or NLC | H3: 13
A4: TLED - Exterior (Type A & B) | B4: Standard Exterior | G4: Default LLLC Fixtures | H4: 0
A5: Standard - Interior | B5: Enhanced Perf. Interior | G5: TLED Type A & B (Non-Eligible) | H5: 4
A6: Standard - Exterior | B6: Enhanced Perf. Exterior | G6: Lamp Replacement | H6: 9
A7: Enhanced Perf. - Interior | B7: High Performance Interior | G7: Controls Only | H7: 0
A8: Enhanced Perf. - Exterior | B8: High Performance Exterior | G8: Miscellaneous Costs | H8: 0
A9: High-Performance - Interior | G9: Non-Eligible | H9: 13
A10: High-Performance - Exterior | G10: Refrigerator | H10: 13
G11: Freezer
G12: Fixture Removal
H16: Cities | I16: Subtowns | J16: Payees
A17: Rate | B17: Description | G17: None | H17: Andover | I17: Abington | J17: Customer
A18: 27 | B18: Time of Day General Service | G18: Space by Space | H18: Ansonia | I18: Addison | J18: Contractor
A19: 29 | B19: Outdoor Recreational Lighting Service | G19: Building Area | H19: Ashford | I19: Allentown | J19: Billing Account
A20: 30 | B20: Small General Electric Service | H20: Avon | I20: Allingtown
A21: 35 | B21: Intermediate General Electric Service | G21: 50% Cooled or More with Economizer | H21: Barkhamsted | I21: Almyville
A22: 40 | B22: Church & School Electric Service | G22: 50% Cooled or More without Economizer | H22: Beacon Falls | I22: Amenia Union
A23: 41 | B23: Large Church & School Electric Service | G23: Less than 50% Cooled | H23: Berlin | I23: Amesville
A24: 55 | B24: Intermediate Time-of-Day Electric Service | H24: Bethany | I24: Amston
A25: 56 | B25: Intermediate Time-of-Day Electric Service | H25: Bethel | I25: Andover
A26: 57 | B26: Large Time-of-Day Electric Service (Mfg) | H26: Bethlehem | I26: Ansonia
A27: 58 | B27: Large Time-of-Day Electric Service (Non-Mfg) | H27: Bloomfield | I27: Ashford
H28: Bolton | I28: Aspetuck
H29: Bozrah | I29: Attawaugan
A30: 50% or More Cooled with Economizer | H30: Branford | I30: Atwoodville
A31: 50% or More Cooled without Economizer | H31: Bridgeport | I31: Augerville
A32: Less than 50% Cooled | H32: Bridgewater | I32: Avon
H33: Bristol | I33: Baileyville
H34: Brookfield | I34: Bakersville
H35: Brooklyn | I35: Ball Pond
H36: Burlington | I36: Ballouville
H37: Canaan | I37: Baltic
H38: Canterbury | I38: Banksville
H39: Canton | I39: Bantam
H40: Chaplin | I40: Barkhamsted
B41: Hours | H41: Cheshire | I41: Bashan
A42: Auto Related | B42: 4056 | H42: Chester | I42: Beacon Falls
A43: Bakery | B43: 2854 | H43: Clinton | I43: Belltown
A44: Banks, Financial Center | B44: 3748 | H44: Colchester | I44: Berkshire
A45: Church | B45: 1955 | H45: Colebrook | I45: Berlin
A46: College: Cafeteria | B46: 6376 | H46: Columbia | I46: Bethany
A47: College: Classes/Administrative | B47: 2586 | H47: Cornwall | I47: Bethel
A48: College: Dormitory | B48: 3066 | H48: Coventry | I48: Bethlehem
A49: Commercial Condo | B49: 4055 | H49: Cromwell | I49: Bill Hill
A50: Convenience Store | B50: 6376 | H50: Danbury | I50: Black Hall
A51: Convention Center | B51: 1954 | H51: Darien | I51: Black Point
A52: Court House | B52: 3748 | H52: Deep River | I52: Bloomfield
A53: Dining: Bar Lounge/Leisure | B53: 4182 | H53: Derby | I53: Blue Hills
A54: Dining: Cafeteria/Fast Food | B54: 6456 | H54: Durham | I54: Boardman Bridge
A55: Dining: Family | B55: 4182 | H55: East Granby | I55: Bolton Notch
A56: Entertainment | B56: 1952 | H56: East Haddam | I56: Bolton
A57: Exercise Center | B57: 5836 | H57: East Hampton | I57: Botsford
A58: Fast Food Restaurant | B58: 6376 | H58: East Hartford | I58: Bozrah
A59: Fire Station (Unmanned) | B59: 1953 | H59: East Haven | I59: Bradleyville
A60: Grocery/Food Store | B60: 5468 | H60: East Lyme | I60: Branchville
A61: Gymnasium | B61: 2586 | H61: East Windsor | I61: Branford
A62: Hospital | B62: 7674 | H62: Eastford | I62: Bridgeport
A63: Health Care | B63: 5564 | H63: Easton | I63: Bridgewater
A64: Industrial: 1 Shift | B64: 2857 | H64: Ellington | I64: Bristol
A65: Industrial: 2 Shift | B65: 5793 | H65: Enfield | I65: Broad Brook
A66: Industrial: 3 Shift | B66: 6631 | H66: Essex | I66: Brookfield Center
A67: Laundromat | B67: 4056 | H67: Fairfield | I67: Brookfield
A68: Library | B68: 3748 | H68: Farmington | I68: Brooklyn
A69: Light Manufacturer | B69: 2857 | H69: Franklin | I69: Brooksvale
A70: Lodging (Hotel/Motel) | B70: 3064 | H70: Glastonbury | I70: Buckingham
A71: Mall Concourse | B71: 4833 | H71: Goshen | I71: Buckland
A72: Manufacturing Facility | B72: 2857 | H72: Granby | I72: Bulls Bridge
A73: Medical Office | B73: 3748 | H73: Greenwich | I73: Burlington
A74: Motion Picture Theatre | B74: 1954 | H74: Griswold | I74: Burnett Corners
A75: Multi-Family (Common Areas) | B75: 6388 | H75: Groton | I75: Burnside
A76: Museum | B76: 3748 | H76: Guilford | I76: Burrville
A77: Nursing Home | B77: 5840 | H77: Haddam | I77: Byram
A78: Office (General Office Types) | B78: 4098 | H78: Hamden | I78: Campbell's Mills
A79: Parking Garage and Lot | B79: 6887 | H79: Hampton | I79: Campville
A80: Penitentiary | B80: 5477 | H80: Hartford | I80: Canaan Valley
A81: Performing Arts Theatre | B81: 2586 | H81: Hartland | I81: Canaan
A82: Police/Fire Station (24 Hr) | B82: 7665 | H82: Harwinton | I82: Candlewood Isle
A83: Post Office | B83: 3748 | H83: Hebron | I83: Candlewood Shores
A84: Pump Station | B84: 1949 | H84: Kent | I84: Cannondale
A85: Refrigerated Warehouse | B85: 2602 | H85: Killingly | I85: Canterbury
A86: Religious Building | B86: 913 | H86: Killingworth | I86: Canton Center
A87: Residential (Except Nursing Homes) | B87: 3066 | H87: Lebanon | I87: Canton
A88: Restaurant | B88: 5018 | H88: Ledyard | I88: Center Groton
A89: Retail | B89: 4939 | H89: Lisbon | I89: Centerbrook
A90: Education (Preschool, Elementary, Jr./Sr. High, University) | B90: 2967 | H90: Litchfield | I90: Centerhill
A91: Small Services | B91: 3748 | H91: Lyme | I91: Centerville
A92: Sports Arena | B92: 1954 | H92: Madison | I92: Central Village
A93: Town Hall | B93: 3748 | H93: Manchester | I93: Chaffeeville
A94: Transportation | B94: 6456 | H94: Mansfield | I94: Chaplin
A95: Warehouse (Not Refrigerated) | B95: 5667 | H95: Marlborough | I95: Cherry Brook
A96: Waste Water Treatment Plant | B96: 6631 | H96: Meriden | I96: Cheshire
A97: Workshop | B97: 3750 | H97: Middlebury | I97: Chester
H98: Middlefield | I98: Chesterfield
H99: Middletown | I99: Chestnut Hill
H100: Milford | I100: Chestnut Hill
H101: Monroe | I101: Chestnut Hill
H102: Montville | I102: Clarks Corner
H103: Morris | I103: Clarks Falls
H104: Naugatuck | I104: Clinton
H105: New Britain | I105: Clintonville
H106: New Canaan | I106: Cobalt
H107: New Fairfield | I107: Colchester
H108: New Hartford | I108: Colebrook
H109: New Haven | I109: Collinsville
H110: New London | I110: Columbia
H111: New Milford | I111: Comstock Bridge
H112: Newington | I112: Cornfield Point
H113: Newtown | I113: Cornwall Bridge
H114: Niantic | I114: Cornwall Center
H115: Norfolk | I115: Cornwall Hollow
H116: North Branford | I116: Cornwall
H117: North Canaan | I117: Cos Cob
H118: North Haven | I118: Coventry
H119: North Stonington | I119: Cranbury
H120: Norwalk | I120: Crescent Beach
H121: Norwich | I121: Cromwell
H122: Old Lyme | I122: Crystal Lake
H123: Old Saybrook | I123: Crystal Lake
H124: Orange | I124: Danbury
H125: Oxford | I125: Danielson
H126: Plainfield | I126: Darien
H127: Plainville | I127: Dayville
H128: Plymouth | I128: Deep River
H129: Pomfret | I129: Deerfield
H130: Portland | I130: Derby
H131: Preston | I131: Devon
H132: Prospect | I132: Doaneville
H133: Putnam | I133: Dobsonville
H134: Redding | I134: Dodgingtown
H135: Ridgefield | I135: Drakeville
H136: Rocky Hill | I136: Durham Center
H137: Roxbury | I137: Durham
H138: Salem | I138: Eagleville
H139: Salisbury | I139: East Berlin
H140: Scotland | I140: East Brooklyn
H141: Seymour | I141: East Canaan
H142: Sharon | I142: East Cornwall
H143: Shelton | I143: East Glastonbury
H144: Sherman | I144: East Granby
H145: Simsbury | I145: East Haddam
H146: Somers | I146: East Hampton
H147: South Windsor | I147: East Hartford
H148: Southbury | I148: East Hartland
H149: Southington | I149: East Haven
H150: Sprague | I150: East Norwalk
H151: Stafford | I151: East Plymouth
H152: Stamford | I152: East Putnam
H153: Sterling | I153: East River
H154: Stonington | I154: East Thompson
H155: Stratford | I155: East Village
H156: Suffield | I156: East Wallingford
H157: Thomaston | I157: East Willington
H158: Thompson | I158: East Windsor Hill
H159: Tolland | I159: East Windsor
H160: Torrington | I160: East Woodstock
H161: Trumbull | I161: Eastford
H162: Union | I162: Easton
H163: Vernon | I163: Edgewood
H164: Voluntown | I164: Ekonk
H165: Wallingford | I165: Ellington
H166: Warren | I166: Elliott
H167: Washington | I167: Ellithorpe
H168: Waterbury | I168: Ellsworth
H169: Waterford | I169: Elmville
H170: Watertown | I170: Elmwood
H171: West Hartford | I171: Enfield
H172: West Haven | I172: Essex
H173: Westbrook | I173: Exeter
H174: Weston | I174: Fabyan
H175: Westport | I175: Fair Haven
H176: Wethersfield | I176: Fairfield
H177: Willington | I177: Falls Village
H178: Wilton | I178: Farmington
H179: Winchester | I179: Fenwick
H180: Windham | I180: Fitchville
H181: Windsor | I181: Flanders Village
H182: Windsor Locks | I182: Flanders
H183: Wolcott | I183: Forestville
H184: Woodbridge | I184: Fort Hill
H185: Woodbury | I185: Foxon
H186: Woodstock | I186: Franklin
I187: Gales Ferry
I188: Gardner Lake
I189: Gaylordsville
I190: Georgetown
I191: Georgetwon
I192: Germantown
I193: Gildersleeve
I194: Gilead
I195: Gilman
I196: Glasgo
I197: Glastonbury
I198: Glenbrook
I199: Glenbrook
I200: Glenville
I201: Goodyear
I202: Goshen Hill
I203: Goshen
... 458 more rows

Sheet AdminList (hidden)
A1: Unitary & Split DX | E1: Heat Pumps - Air
A2: Existing | B2: Proposed | C2: Equipment Type | E2: Existing Equipment / System | F2: Proposed Equipment Type if Cooling Capacity <65,000 Btu/hr | G2: Fully replacing heating system. | H2: What Fuel Type is being displaced ? | I2: Integrated Control Setting | J2: Fuel Optimization: Heat Pump Displacing Fossil Fuel or Elec Resistance Heat? | K2: Fuel Optimization: Base Heating Fuel Being Displaced
A3: Unitary | B3: Unitary | C3: Split System | E3: Boiler | F3: Ductless Single Zone | G3: Yes | H3: Oil | I3: Droop Setting | J3: Full | K3: Fossil Fuel
A4: Split | B4: Split | C4: Single Package | E4: Condensing Boiler | F4: Ducted or Ductless Multi Zone | G4: No | H4: Natural Gas | I4: Switch-Over Temperature | J4: Partial | K4: Electric Resistance
E5: Steam Distribution System | F5: Centrally-Ducted | H5: Propane | J5: Not Used for primary Heating
E6: Furnace | H6: Electric Resistance
E7: Condensate Return System
E8: Unit Heater
E9: Other
A12: DHW | E12: Heat Pumps - Water
A13: Equipment Type | B13: Equipment Type | C13: Energy Star Rating | E13: Existing Equipment / System | F13: Fully replacing pre-existing heating System ? | G13: What Fuel Type is being displaced ? | H13: Integrated Control Setting | I13: Proposed Installed Category or Type
A14: On Demand | B14: Heat Pump | C14: Yes | E14: Boiler | F14: Yes | G14: Oil | H14: Droop Setting | I14: Water-to-Air: Boiler/Cooling Tower
A15: Direct Fired | C15: No | E15: Condensing Boiler | F15: No | G15: Natural Gas | H15: Switch-Over Temperature | I15: Water-to-Air: Ground Loop (Closed Loop
A16: In-direct Fired | B16: Storage Type | E16: Steam Distribution System | G16: Propane | I16: Water-to-Water: Ground Water (Open Loop)
B17: On Demand | E17: Furnace | G17: Electric Resistance | I17: Water-to-Air: Ground Water (Open Loop)
B18: Large DWH Boiler | E18: Condensate Return System | I18: Water-to-Water: Boiler/Cooling Tower
E19: Unit Heater | I19: Water-to-Water: Ground Loop (Closed Loop)
E20: Other
A22: HW Usage | E22: VRF-VRV
A23: Type of water heater | B23: Is this a school? | E23: Existing Equipment / System | F23: Fully replacing pre-existing heating System ? | G23: What Fuel Type is being displaced ? | H23: Integrated Control Setting | I23: Proposed Indoor Unit Type | J23: Proposed VRF Classification
A24: 1-Electric | B24: Yes | E24: Boiler | F24: Yes | G24: Oil | H24: Droop Setting | I24: Ducted | J24: VRF without Heat Recovery
A25: 2-Gas | B25: No | E25: Condensing Boiler | F25: No | G25: Natural Gas | H25: Switch-Over Temperature | I25: Non-ducted | J25: VRF with Heat Recovery
A26: 3-Propane | E26: Steam Distribution System | G26: Propane | I26: Mixed | J26: Cooling Only
A27: 4-Oil | E27: Furnace | G27: Electric Resistance
E28: Condensate Return System
E29: Unit Heater
E30: Other
A32: VFD | E32: Gas Heating
A33: Fan Type | B33: CT VFD Installation Type | E33: Proposed Equipment | F33: Proposed Boiler Type /Furnace Vent Configuration | G33: Proposed Proposed Fuel Type | H33: Existing Equipment /System | I33: Existing Fuel
A34: <= 50 HP Motors | B34: Added to Existing Equip. (Add-On) | E34: Boiler - Condensing | F34: Boiler: Hot Water < 300 MBH | G34: Electric | H34: Hot Water Boiler | I34: Electric
A35: > 50 HP Motors | B35: Installed on New/Replacement Equip. | E35: Boiler - Non-Condensing | F35: Boiler: Hot Water = 300 & = 2500 MBH | G35: Natural Gas | H35: Forced Air Furnace | I35: Natural Gas
A36: CV constant speed | E36: Furnace - Condensing | F36: Boiler: Hot Water Cast Iron Sectional | G36: Oil | H36: Boiler | I36: Oil
A37: AF/BI | E37: Infrared Radiant (IR) | F37: Boiler: Steam < 300 MBH,Steam = 300 MBH | G37: Propane | H37: Condensing Boiler | I37: Propane
A38: AF/BIV | E38: Unit Heater | F38: Boiler: Steam natural draft = 300 MBH | G38: Other | H38: Furnace | I38: Other
A39: Forward Curve IGV | E39: Gas Absorption Heat Pumps | F39: Furnace: Unknown exisiting venting | H39: Steam Distribution System
A40: Forward Curve | F40: Furnace: Existing condensing stack | H40: Condensate Return System
F41: Furnace: Existing non-condensing stack | H41: Unit Heater
H42: Forced Air Furnace
A44: DCV | E44: Steam Traps
A45: Sensor location | B45: Heating Fuel | E45: Issue | F45: Repair or Replace | G45: Type | H45: Burner Control (if avalable) | I45: Condensate Return Line (Yes/No)
A46: Return Duct | B46: Electric Heat | E46: Blowing thru | F46: No Change | G46: Process Steam | H46: Linkage Control | I46: Yes
A47: Wall Mounted | B47: Heat Pump | E47: Leaking | F47: Repair | G47: Banks,Financial Center Heating | H47: Parallel Positioning | I47: No
B48: Natural Gas | E48: Not in service | F48: Replace | G48: College:Classess/Administrative Heating | H48: Parallel Positioning and O2 Trim
B49: Propane/Oil | E49: Not Tested | G49: College:Dormitory Heating
B50: Other and No Heating | E50: OK | G50: Commercial Condo Heating
E51: Plugged | G51: Convention Center Heating
G52: Court House Heating
G53: Fire Station (Unmanned) Heating
G54: Hospital Heating
A55: Advanced Thermostat | G55: Hospitals/Health Care Heating
A56: Heating Type | B56: Cooling Type | G56: Mall Concourse Heating
A57: Heating - Natural Gas Heating System | B57: Cooling - Cooling System | G57: Multi-Family (Common Areas) Heating
A58: Heating - Oil Heating System | B58: Cooling -Not Applicable | G58: Nursing Home Heating
A59: Heating - Propane Heating System | G59: Penitentiary Heating
A60: Heating - Electric Resistance Heating System | G60: Police/Fire Station (24 Hr) Heating
A61: Heating - Electric Heat Pump | G61: Residentail (Except Nursing Homes ) Heating
A62: Heating - Not Applicable | G62: School/University Heating
G63: Schools (Jr./Sr. High) Heating
G64: Schools (Technical/Vocational) Heating
A67: Pipe Ins | E67: EMS
A68: Pipe :Type of Fluid | B68: Blanket: Type of Fluid | E68: Type | F68: New or existing | G68: Existing Control Strategy | H68: Type | I68: New or existing
A69: High Pressure Steam | B69: High Pressure Steam | E69: Gas HW- Condensing | F69: Being Replaced | G69: None | H69: Water Cooled | I69: Being Replaced
A70: Medium Pressure Steam | B70: Medium Pressure Steam | E70: Gas HW- Non-Condensing | F70: New (didn't exist previously) | G70: Outside Temp Reset | H70: Air Cooled | I70: New Replacement
A71: Low Pressure Steam | B71: Low Pressure Steam | E71: Gas Fired Steam Boiler | F71: Existing To Remain | H71: Heat Pump/VRF system | I71: Remaining
A72: Condensate | B72: Condensate | E72: Electric Boiler
A73: Heating Hot Water | B73: Heating Hot Water | E73: Heat Pump/VRF system | G73: Primary
A74: Domestic Hot Water | B74: Domestic Hot Water | G74: Secondary
A75: Chilled Water | B75: Chilled Water
A77: Insulation | E77: Refrigeration Equipment
A79: Roof: Insulation Entirely Above Deck | B79: Mass Wall | E79: COOLER | F79: Shaded Pole | G79: Single-Phase
A80: Roof: Metal Building | B80: Metal Building Wall | E80: FREEZER | F80: PSC | G80: Three-Phase
A81: Roof: Attic and Other | B81: Metal Framed
A82: Walls, Above-Grade: Mass | B82: Wood Framed and Other
A83: Walls, Above-Grade: Metal Building | B83: Attic and Other
A84: Walls, Above-Grade: Steel-Framed | B84: Roof Insulation Above Deck
A85: Walls, Above-Grade: Wood-framed or other | B85: Metal Building Roof
A86: Walls Below-Grade
A88: Washers | E88: Refrigeration Equipment
A89: Front Load Washer | B89: No Dryer | C89: Electric DHW | E89: 1 shift | F89: 1- Single-acting Reciprocating Air Compressor | G89: 1- Inlet Valve Modulated
A90: Top Load Washer | B90: Electric Dryer | C90: Gas DHW | E90: 2 shifts | F90: 2- Double-acting Reciprocating Air Compressor | G90: 2- Variable Displacement
B91: Gas Dryer | C91: Propane DHW | E91: 3 shifts | F91: 3- Lubricant-injected Rotary Screw Compressor | G91: 3- Variable Speed Drive
C92: Oil DHW | E92: 4 shifts | F92: 4- Lubricant Free Rotary Screw Compressor | G92: 4- Unknown
F93: 5- Centrifigal Compressor
A94: Chillers | F94: 6- Unknown
A95: 2-Air Cooled (with condenser)
A96: 3-Water Cooled Positive Displacement | E96: Windows
A97: 4-Water Cooled Centrifugal | E97: New Windows | F97: Electric | G97: N
E98: Window Film | F98: Fossil Fuel | G98: NE
G99: E
A100: Air Compressor Heat Recoveruy | G100: SE
A101: Yes | C101: Compressor is existing | G101: S
A102: No | B102: Located in conditioned space (heated /maybe cooled) | C102: Compressor is new | G102: SW
B103: Located in in a room with venting to the outside | G103: W
B104: Other -describe below | G104: NW
A107: ERV
A108: System Type
A109: Constant Speed
A110: VAV
